Workbook

Sheet modList07 (hidden)

Sheet modList05 (hidden)

Sheet modProv (hidden)

Sheet Инструкция
AA1: (требуется обновление)
B2: ="Код отчёта: " & GetCode() -> Код отчёта: FAS.JKH.OPEN.INFO.BALANCE.VO
B3: ="Версия " & GetVersion() -> Версия 1.0.6
B5: =Титульный!E5 -> Информация о показателях финансово-хозяйственной деятельности, об основных потребительских характеристиках регулируемых товаров и услуг, об инвестиционных программах регулируемой организации в сфере водоотведения и (или) очистки сточных вод
E7: • На рабочем месте должен быть установлен MS Office 2007 SP3, 2010, 2013, 2016 с полной версией MS Excel • Макросы во время работы должны быть включены (!) • Для корректной работы отчёта требуется выбрать низкий уровень безопасности (В меню MS Excel 2007/2010/2013/2016: Параметры Excel | Центр управления безопасностью | Параметры центра управления безопасностью | Параметры макросов | Включить все макросы | ОК) • Если Вы работаете в табличном процессоре MS Excel 2007 и выше, то можете использовать для работы формат XLSB (Двоичная книга Excel). При работе в формате XLSB заметно быстрее происходит сохранение файла, а также уменьшается размер по сравнению с форматами XLS и XLSM • Не рекомендуется снимать защиту с листов и каким-либо образом модифицировать защищаемые формулы и расчётные поля, в противном случае, отчёт будет отклонён системой • При сохранении не следует выбирать формат XLSX (Книга Excel), так как в указанном формате макросы, необходимые для работы отчёта, безвозвратно удаляются
E21: A | F21: - не обязательные для заполнения | O21: A | P21: - с формулами и константами
E22: A | F22: - обязательные для заполнения | O22: A | P22: - с выбором значений до двойному клику
E35: Если в предложенном Вам списке необходимая организация, МР/МО отсутствуют, обновите реестры с помощью кнопок В результате синхронизации с базой данных список организаций (МР/МО) будет заменён актуальным (механизм синхронизации требует подключения к сети Интернет и основан на использовании протокола HTTPS (TCP порт 443)) Если после обновления Вам не удалось найти необходимую организацию в списке, обратитесь к ответственному за поддержание реестра Вашего региона.
E46: • При сохранении шаблона осуществляется проверка корректности данных, в том числе на наличие значений в ячейках, обязательных для заполнения • Если какая-то ячейка не удовлетворяет условию проверки, на лист «Проверка» добавляется гиперссылка на данную ячейку и указывается причина ошибки • В колонке «Статус» для каждого сообщения возможны 2 значения: ошибка и предупреждение • При наличии сообщений со статусом «Ошибка» шаблон будет отклонён системой и не будет загружен в хранилище данных, сообщения со статусом «Предупреждение» носят информационный характер, и такой шаблон будет принят системой
E58: Обратиться за помощью в службу технической поддержки
E70: Инструкция по загрузке сопроводительных материалов
E71: Инструкция по работе с отчетной формой
E79: При наличии подключения к Интернет, можно автоматически проверять наличие доступных обновлений. Выберите способ оповещения о наличии обновлений для отчёта:
F81: проверять доступные обновления (рекомендуется) | AA81: y
F83: никогда не проверять наличие обновлений (не рекомендуется)

Sheet Лог обновления (hidden)
A1: Дата/Время | B1: Сообщение | C1: Статус
A2: 2021-04-27T15:02:08 | B2: Проверка доступных обновлений... | C2: Информация
A3: 2021-04-27T15:02:10 | B3: Нет доступных обновлений для отчёта с кодом FAS.JKH.OPEN.INFO.BALANCE.VO! | C3: Информация
A4: 2021-04-27T15:02:17 | B4: Проверка доступных обновлений... | C4: Информация
A5: 2021-04-27T15:02:18 | B5: Нет доступных обновлений для отчёта с кодом FAS.JKH.OPEN.INFO.BALANCE.VO! | C5: Информация
A6: 2021-04-27T15:02:28 | B6: Проверка доступных обновлений... | C6: Информация
A7: 2021-04-27T15:02:29 | B7: Нет доступных обновлений для отчёта с кодом FAS.JKH.OPEN.INFO.BALANCE.VO! | C7: Информация
A8: 2021-04-27T15:03:08 | B8: Проверка доступных обновлений... | C8: Информация
A9: 2021-04-27T15:03:09 | B9: Нет доступных обновлений для отчёта с кодом FAS.JKH.OPEN.INFO.BALANCE.VO! | C9: Информация
A10: 2021-04-27T16:45:56 | B10: Проверка доступных обновлений... | C10: Информация
A11: 2021-04-27T16:45:58 | B11: Нет доступных обновлений для отчёта с кодом FAS.JKH.OPEN.INFO.BALANCE.VO! | C11: Информация
A12: 2021-04-28T11:32:00 | B12: Проверка доступных обновлений... | C12: Информация
A13: 2021-04-28T11:32:02 | B13: Нет доступных обновлений для отчёта с кодом FAS.JKH.OPEN.INFO.BALANCE.VO! | C13: Информация
A14: 2021-04-28T16:11:36 | B14: Проверка доступных обновлений... | C14: Информация
A15: 2021-04-28T16:11:38 | B15: Нет доступных обновлений для отчёта с кодом FAS.JKH.OPEN.INFO.BALANCE.VO! | C15: Информация
A16: 2021-04-29T08:55:55 | B16: Проверка доступных обновлений... | C16: Информация
A17: 2021-04-29T08:55:58 | B17: Нет доступных обновлений для отчёта с кодом FAS.JKH.OPEN.INFO.BALANCE.VO! | C17: Информация
A18: 2021-04-29T08:59:51 | B18: Проверка доступных обновлений... | C18: Информация
A19: 2021-04-29T08:59:53 | B19: Нет доступных обновлений для отчёта с кодом FAS.JKH.OPEN.INFO.BALANCE.VO! | C19: Информация
A20: 2021-04-30T08:08:39 | B20: Проверка доступных обновлений... | C20: Информация
A21: 2021-04-30T08:08:41 | B21: Нет доступных обновлений для отчёта с кодом FAS.JKH.OPEN.INFO.BALANCE.VO! | C21: Информация
A22: 2021-04-30T08:18:50 | B22: Проверка доступных обновлений... | C22: Информация
A23: 2021-04-30T08:18:52 | B23: Нет доступных обновлений для отчёта с кодом FAS.JKH.OPEN.INFO.BALANCE.VO! | C23: Информация
A24: 2021-04-30T09:45:38 | B24: Проверка доступных обновлений... | C24: Информация

Sheet Титульный
F1: 26372410
F4: =version -> Версия 1.0.6
E5: Информация о показателях финансово-хозяйственной деятельности, об основных потребительских характеристиках регулируемых товаров и услуг, об инвестиционных программах регулируемой организации в сфере водоотведения и (или) очистки сточных вод
E7: Субъект РФ | F7: Иркутская область
E9: Публикация2 | F9: На сайте регулирующего органа
E11: Отсутствует Интернет в границах территории МО, где организация осуществляет регулируемые виды деятельности | F11: нет
E13: Тип отчета | F13: первичное раскрытие информации
E14: Дата внесения изменений в информацию, подлежащую раскрытию | F14: 27.04.2021
E16: Применяется дифференциация тарифа по централизованным системам водоотведения?
E17: Информация по скольким централизованным системам водоотведения будет заполнена в шаблоне?
C20: 2020 | E20: Отчётный период (год) | F20: 2020
E23: Является ли данное юридическое лицо подразделением (филиалом) другой организации | F23: нет
E26: Наименование организации | F26: МУП "Водоканал-Сервис"
E27: Наименование филиала
E28: ИНН | F28: 3814007427
E29: КПП | F29: 381401001
E30: Вид деятельности
E32: Регулируемая организация осуществляет сдачу годового бухгалтерского баланса в налоговые органы | F32: да
E33: Дата направления годового бухгалтерского баланса в налоговые органы | F33: 30.03.2021
E35: Превышает ли выручка от регулируемой деятельности 80% совокупной выручки за отчетный год | F35: да
E37: Организация выполняет инвестиционную программу | F37: нет
E38: Дифференциация по территориям и системам коммунальной инфраструктуры применяется для инвестиционных программ | F38: нет
E40: Почтовый адрес регулируемой организации | F40: 666304, Саянск-4, промышленно-коммунальная зона, проезд 2, д. 15, а/я 380
E41: Фамилия, имя, отчество руководителя | F41: Еременко Сергей Константинович
F43: Ответственный за составление формы
E44: Фамилия, имя, отчество | F44: Кононенко Анна Александровна
E45: Должность | F45: начальник ПЭО
E46: (код) номер телефона | F46: 8 39553 51120
E47: e-mail | F47: МУП В-С предприятие <sayanskvodokanal@mail.ru>

Sheet Территории
K1: МО | L1: ОКТМО | M1: МР
D4: Перечень муниципальных районов и муниципальных образований (территорий оказания услуг)
F6: да
D8: Территория оказания услуг | F8: Муниципальный район | I8: Муниципальное образование
D9: № п/п | E9: Наименование | F9: № п/п | H9: Наименование | I9: № п/п | K9: Наименование | L9: ОКТМО
D10: 1 | E10: 2 | F10: 3 | H10: 4 | I10: 5 | K10: 6 | L10: 7
D11: 0 | M11: размерженный МР | P11: флаг используемости территории на листе Перечень тарифов | Q11: копия территорий | R11: МР (ОКТМО)
B12: auto | D12: 1 | E12: Город Саянск, Город Саянск (25726000); | G12: 0 | J12: 0 | M12: =mergeValue(H12) -> 0 | P12: =IF(ISERROR(MATCH(MID(Q12,1,250),MID(note_ter,1,250),0)),"n","y") -> n | Q12: Город Саянск, Город Саянск (25726000); | R12: =K12&"("&L12&")" -> ()
B13: auto | G13: 1 | H13: Город Саянск | J13: 0 | M13: =mergeValue(H13) -> Город Саянск | R13: =K13&"("&L13&")" -> ()
B14: auto | J14: 1 | K14: Город Саянск | L14: 25726000 | M14: =mergeValue(H14) -> Город Саянск | R14: =K14&" ("&L14&")" -> Город Саянск (25726000)
B17: man | Q17: Добавить территорию оказания услуг

Sheet Дифференциация
D4: =Титульный!E5 -> Информация о показателях финансово-хозяйственной деятельности, об основных потребительских характеристиках регулируемых товаров и услуг, об инвестиционных программах регулируемой организации в сфере водоотведения и (или) очистки сточных вод
D5: =IF(org=0,"Не определено",org) -> МУП "Водоканал-Сервис"
D18: Вид деятельности | F18: Дифференциация по территориям оказания услуг | J18: Дифференциация по централизованным системам коммунальной инфраструктуры
D19: № п/п | E19: Наименование | F19: да/нет | G19: № п/п | I19: Наименование | J19: да/нет | K19: № п/п | M19: Наименование
D20: 1 | E20: 2 | F20: 3 | G20: 4 | I20: 5 | J20: 6 | K20: 7 | M20: 8
D22: 1 | E22: Водоотведение | F22: нет | H22: 1 | J22: нет | L22: 1 | X22: 4189714 | Y22: a | Z22: 1705000

Sheet Форма 1.0.1 | Форма 3.5.1
G1: 4
D5: Форма 1.0.1 Основные параметры раскрываемой информации 1
D6: =IF(org=0,"Не определено",org) -> МУП "Водоканал-Сервис"
C8: 22 | D8: Форма 1.0.1
D9: Параметры формы | G9: Описание параметров формы
A10: \ | D10: № п/п | F10: Информация
D11: 1 | E11: 2 | F11: 3 | G11: 4
D12: 1 | E12: Дата заполнения/внесения изменений | F12: =IF(form_up_date="","",form_up_date) -> 27.04.2021 | G12: Указывается календарная дата первичного заполнения или внесения изменений в форму в виде «ДД.ММ.ГГГГ».
D13: 2.1 | E13: Наименование централизованной системы коммунальной инфраструктуры | F13: наименование отсутствует | G13: Указывается наименование централизованной системы холодного водоснабжения/горячего водоснабжения/водоотведения/теплоснабжения, к которой относится размещаемая информация. В случае наличия нескольких централизованных систем коммунальной инфраструктуры, информация по каждой из них указывается в отдельной строке.
D14: 3.1 | E14: Наименование регулируемого вида деятельности | F14: Водоотведение | G14: Указывается наименование вида регулируемой деятельности.
D15: 4.1 | E15: Территория оказания услуги по регулируемому виду деятельности | F15: x
D16: =D15&".1" -> 4.1.1 | E16: Субъект РФ | F16: =IF(region_name="","",region_name) -> Иркутская область | G16: Указывается наименование субъекта Российской Федерации
D17: 4.1.1.1 | E17: муниципальный район | F17: Город Саянск | G17: Указывается наименование муниципального района, на территории которого организация оказывает услуги по регулируемому виду деятельности.
D18: 4.1.1.1.1 | E18: муниципальное образование | F18: Город Саянск (25726000) | G18: Указывается наименование и код муниципального района, муниципального образования в соответствии с Общероссийским классификатором территорий муниципальных образований (далее - ОКТМО), входящего в муниципальный район, на территории которого организация оказывает услуги по регулируемому виду деятельности. В случае оказания услуг по регулируемому виду деятельности на территории нескольких муниципальных районов (муниципальных образований) данные по каждому их них указываются в отдельной строке.
E20: 1 Информация по данной форме публикуется при раскрытии информации по каждой из форм.

Sheet Форма 3.5.1
G1: 4
F2: тыс. руб. | H2: Указываются прочие расходы, которые подлежат отнесению на регулируемые виды деятельности в соответствии с законодательством в сфере водоснабжения и водоотведения.
F4: % | H4: Указывается показатель использования по производственному объекту как процент объем перекачки по отношению к пиковому дню отчетного года.
H7: 4
D9: Информация об основных показателях финансово-хозяйственной деятельности регулируемой организации, включая структуру основных производственных затрат (в части регулируемого вида деятельности)
G11: 22
D12: Параметры формы | H12: Описание параметров формы
D13: № п/п | E13: Наименование параметра | F13: Единица измерения | G13: Вид деятельности: - Водоотведение Территория оказания услуг: - без дифференциации Централизованная система водоотведения: - наименование отсутствует
G14: Информация
D15: 1 | E15: 2 | F15: 3 | G15: =G1 -> 4
D16: 1 | E16: Дата сдачи годового бухгалтерского баланса в налоговые органы | F16: х | G16: =IF(buhg_flag="да",IF(dateBuhg="","Не указана",dateBuhg),"Не осуществлялась") -> 30.03.2021 | H16: Указывается календарная дата сдачи бухгалтерского баланса в налоговые органы в случае, если организация сдает бухгалтерский баланс в налоговые органы по виду регулируемой деятельности, в отношении которого размещаются данные. Дата указывается в виде «ДД.ММ.ГГГГ».
D17: 2 | E17: Выручка от регулируемой деятельности по виду деятельности | F17: тыс. руб. | G17: 54615 | H17: Указывается выручка от регулируемой деятельности по виду деятельности в сфере водоотведения.
D18: 3 | E18: Себестоимость производимых товаров (оказываемых услуг) по регулируемому виду деятельности, включая: | F18: тыс. руб. | G18: =SUM(G19:G20,G23:G30,G33,G36,G38,G40) -> 63391 | H18: Указывается суммарная себестоимость производимых товаров.
D19: 3.1 | E19: Расходы на оплату услуг по приему, транспортировке и очистке сточных вод другими организациями | F19: тыс. руб. | G19: 32057
D20: 3.2 | E20: Расходы на покупаемую электрическую энергию (мощность), используемую в технологическом процессе: | F20: тыс. руб. | G20: 1007.55
D21: 3.2.1 | E21: Средневзвешенная стоимость 1 кВт.ч (с учетом мощности) | F21: руб. | G21: =G20/G22 -> 2.908043986
D22: 3.2.2 | E22: Объем приобретаемой электрической энергии | F22: тыс. кВт·ч | G22: 346.47
D23: 3.3 | E23: Расходы на хим. реагенты, используемые в технологическом процессе | F23: тыс. руб. | G23: 0
D24: 3.4 | E24: Расходы на оплату труда основного производственного персонала | F24: тыс. руб. | G24: 1788
D25: 3.5 | E25: Отчисления на социальные нужды основного производственного персонала | F25: тыс. руб. | G25: 538
D26: 3.6 | E26: Расходы на оплату труда административно-управленческого персонала | F26: тыс. руб. | G26: 3302
D27: 3.7 | E27: Отчисления на социальные нужды административно-управленческого персонала | F27: тыс. руб. | G27: 994
D28: 3.8 | E28: Расходы на амортизацию основных производственных средств | F28: тыс. руб. | G28: 11248
D29: 3.9 | E29: Расходы на аренду имущества, используемого для осуществления регулируемого вида деятельности | F29: тыс. руб. | G29: =10+28 -> 38
D30: 3.10 | E30: Общепроизводственные расходы, в том числе: | F30: тыс. руб. | G30: =G31+G32 -> 798 | H30: Указывается общая сумма общепроизводственных расходов.
D31: 3.10.1 | E31: Расходы на текущий ремонт | F31: тыс. руб. | G31: =(429+369)*60/100 -> 478.8 | H31: Указываются расходы на текущий ремонт, отнесенные к общепроизводственным расходам.
D32: 3.10.2 | E32: Расходы на капитальный ремонт | F32: тыс. руб. | G32: =(429+369)*40/100 -> 319.2 | H32: Указываются расходы на капитальный ремонт, отнесенные к общепроизводственным расходам
D33: 3.11 | E33: Общехозяйственные расходы, в том числе: | F33: тыс. руб. | G33: =G34+G35 -> 92 | H33: Указывается общая сумма общехозяйственных расходов.
D34: 3.11.1 | E34: Расходы на текущий ремонт | F34: тыс. руб. | G34: =(85+7)*60/100 -> 55.2 | H34: Указываются расходы на текущий ремонт, отнесенные к общехозяйственным расходам.
D35: 3.11.2 | E35: Расходы на капитальный ремонт | F35: тыс. руб. | G35: =(85+7)*40/100 -> 36.8 | H35: Указываются расходы на капитальный ремонт, отнесенные к общехозяйственным расходам.
D36: 3.12 | E36: Расходы на капитальный и текущий ремонт основных производственных средств | F36: тыс. руб. | G36: 0
E37: Информация об объемах товаров и услуг, их стоимости и способах приобретения у тех организаций, сумма оплаты услуг которых превышает 20 процентов суммы расходов по указанной статье расходов | G37: отсутствует | K37: =nerr(MATCH("есть",List01_flag_index_1,0)) -> 0
D38: 3.13 | E38: Расходы на услуги производственного характера, оказываемые по договорам с организациями на проведение регламентных работ в рамках технологического процесса | F38: тыс. руб. | G38: =63391-51862.55 -> 11528.45
E39: Информация об объемах товаров и услуг, их стоимости и способах приобретения у тех организаций, сумма оплаты услуг которых превышает 20 процентов суммы расходов по указанной статье расходов | G39: отсутствует | K39: =nerr(MATCH("есть",List01_flag_index_2,0)) -> 0
D40: 3.16 | E40: Прочие расходы, которые подлежат отнесению на регулируемые виды деятельности, в том числе: | F40: тыс. руб. | G40: =SUM(G41:G43) -> 0 | H40: Указывается общая сумма прочих расходов, которые подлежат отнесению на регулируемые виды деятельности в соответствии с законодательством в сфере водоснабжения и водоотведения.
D41: 3.16.0
P42: SUM_CALC
E43: Добавить прочие расходы | H43: В случае наличия нескольких видов прочих расходов информация указывается в отдельных строках.
D44: 4 | E44: Чистая прибыль, полученная от регулируемого вида деятельности, в том числе: | F44: тыс. руб. | G44: 0 | H44: Указывается общая сумма чистой прибыли, полученной от регулируемого вида деятельности.
D45: 4.1 | E45: Размер расходования чистой прибыли на финансирование мероприятий, предусмотренных инвестиционной программой регулируемой организации | F45: тыс. руб. | G45: 0
D46: 5 | E46: Изменение стоимости основных фондов, в том числе: | F46: тыс. руб. | G46: =G47 -> 3818 | H46: Указывается общее изменение стоимости основных фондов.
D47: 5.1 | E47: Изменение стоимости основных фондов за счет их ввода в эксплуатацию (вывода из эксплуатации) | F47: тыс. руб. | G47: =G48-G49 -> 3818 | H47: Указываются общее изменение стоимости основных фондов за счет их ввода в эксплуатацию и вывода из эксплуатации.
D48: 5.1.1 | E48: Изменение стоимости основных фондов за счет их ввода в эксплуатацию | F48: тыс. руб. | G48: 4070 | H48: Указываются изменение стоимости основных фондов за счет их ввода в эксплуатацию.
D49: 5.1.2 | E49: Изменение стоимости основных фондов за счет их вывода в эксплуатацию | F49: тыс. руб. | G49: 252 | H49: Указываются изменение стоимости основных фондов за счет их вывода из эксплуатации.
D50: 5.2 | E50: Изменение стоимости основных фондов за счет их переоценки | F50: тыс. руб. | G50: 0
D51: 6 | E51: Валовая прибыль (убытки) от продажи товаров и услуг по регулируемому виду деятельности | F51: тыс. руб. | G51: =G17-G18+2969 -> -5807
D52: 7 | E52: Годовая бухгалтерская отчетность, включая бухгалтерский баланс и приложения к нему | F52: - | G52: https://portal.eias.ru/Portal/DownloadPage.aspx?type=12&guid=f0b290fa-f3ee-43bd-9535-85e1fae70cb5 | H52: Указывается ссылка на документ, предварительно загруженный в хранилище файлов ФГИС ЕИАС. Раскрывается регулируемой организацией, выручка от регулируемых видов деятельности которой превышает 80 процентов совокупной выручки за отчетный год.
D53: 8 | E53: Объем сточных вод, принятых от потребителей оказываемых услуг | F53: тыс. куб. м | G53: 3055.465
D54: 9 | E54: Объем сточных вод, принятых от других регулируемых организаций в сфере водоотведения и (или) очистки сточных вод | F54: тыс. куб. м | G54: 0
D55: 10 | E55: Объем сточных вод, пропущенных через очистные сооружения | F55: тыс. куб. м | G55: 3055.465
D56: 11 | E56: Среднесписочная численность основного производственного персонала | F56: человек | G56: 5
G63: =IF(G17-G18 <>G51,"WARNING","") -> WARNING

Sheet Форма 1.0.1 | Форма 3.5.2 (hidden)
G1: 4
D5: Форма 1.0.1 Основные параметры раскрываемой информации 1
D6: =IF(org=0,"Не определено",org) -> МУП "Водоканал-Сервис"
C8: 22 | D8: Форма 1.0.1
D9: Параметры формы | G9: Описание параметров формы
A10: \ | D10: № п/п | F10: Информация
D11: 1 | E11: 2 | F11: 3 | G11: 4
D12: 1 | E12: Дата заполнения/внесения изменений | F12: =IF(form_up_date="","",form_up_date) -> 27.04.2021 | G12: Указывается календарная дата первичного заполнения или внесения изменений в форму в виде «ДД.ММ.ГГГГ».
D13: 2.1 | E13: Наименование централизованной системы коммунальной инфраструктуры | F13: наименование отсутствует | G13: Указывается наименование централизованной системы холодного водоснабжения/горячего водоснабжения/водоотведения/теплоснабжения, к которой относится размещаемая информация. В случае наличия нескольких централизованных систем коммунальной инфраструктуры, информация по каждой из них указывается в отдельной строке.
D14: 3.1 | E14: Наименование регулируемого вида деятельности | F14: Водоотведение | G14: Указывается наименование вида регулируемой деятельности.
D15: 4.1 | E15: Территория оказания услуги по регулируемому виду деятельности | F15: x
D16: =D15&".1" -> 4.1.1 | E16: Субъект РФ | F16: =IF(region_name="","",region_name) -> Иркутская область | G16: Указывается наименование субъекта Российской Федерации
D17: 4.1.1.1 | E17: муниципальный район | F17: Город Саянск | G17: Указывается наименование муниципального района, на территории которого организация оказывает услуги по регулируемому виду деятельности.
D18: 4.1.1.1.1 | E18: муниципальное образование | F18: Город Саянск (25726000) | G18: Указывается наименование и код муниципального района, муниципального образования в соответствии с Общероссийским классификатором территорий муниципальных образований (далее - ОКТМО), входящего в муниципальный район, на территории которого организация оказывает услуги по регулируемому виду деятельности. В случае оказания услуг по регулируемому виду деятельности на территории нескольких муниципальных районов (муниципальных образований) данные по каждому их них указываются в отдельной строке.
E20: 1 Информация по данной форме публикуется при раскрытии информации по каждой из форм.

Sheet Форма 3.5.2 (hidden)
D5: Информация о расходах на капитальный и текущий ремонт основных производственных средств, расходах на услуги производственного характера
D7: Параметры формы | S7: Описание параметров формы
D8: № п/п | E8: № п/п | G8: Наименование параметра | H8: № п/п | J8: Способ приобретения | K8: Реквизиты договора | L8: № п/п | N8: Наименование товара/услуги | O8: Объем приобретенных товаров, услуг | P8: Единица измерения объема | Q8: Стоимость, тыс. руб. | R8: Доля расходов, % (от суммы расходов по указанной статье)
D9: 1 | F9: 2 | G9: 3 | I9: 4 | J9: 5 | K9: 6 | M9: 7 | N9: 8 | O9: 9 | P9: 10 | Q9: 11 | R9: 12
D11: 0
A12: 22 | D12: 1 | E12: Вид деятельности: - Водоотведение Территория оказания услуг: - без дифференциации Централизованная система водоотведения: - наименование отсутствует | AG12: NOTSHOW | AH12: 3
E13: Информация об объемах товаров и услуг, их стоимости и способах приобретения у организаций, в том числе: | Q13: =SUMIF(T14:T15,"i",Q14:Q15) -> 0 | S13: Указывается сумма стоимости приобретения товаров и услуг у организаций, сумма оплаты услуг которых превышает 20% суммы расходов на капитальный и текущий ремонт основных производственных средства | T13: i | U13: 1 | V13: =INDEX(List01_flag_index_1,1,MATCH(A12,List01_NumberColumns,0)) -> отсутствует
F14: 0
G15: Добавить поставщика
E16: Расходы на услуги производственного характера, выполняемые по договорам с организациями на проведение регламентных работ в рамках технологического процесса. Из них товары и услуги, приобретенные у организаций, сумма оплаты услуг которых превышает 20% суммы расходов по статье: | Q16: =SUMIF(T17:T18,"i",Q17:Q18) -> 0 | S16: Указывается сумма стоимости приобретения товаров и услуг у организаций, сумма оплаты услуг которых превышает 20% суммы расходов на капитальный и текущий ремонт основных производственных средства | T16: i | U16: 2 | V16: =INDEX(List01_flag_index_2,1,MATCH(A12,List01_NumberColumns,0)) -> отсутствует
F17: 0

Sheet Форма 1.0.1 | Форма 3.6
G1: 4
D5: Форма 1.0.1 Основные параметры раскрываемой информации 1
D6: =IF(org=0,"Не определено",org) -> МУП "Водоканал-Сервис"
C8: 22 | D8: Форма 1.0.1
D9: Параметры формы | G9: Описание параметров формы
A10: \ | D10: № п/п | F10: Информация
D11: 1 | E11: 2 | F11: 3 | G11: 4
D12: 1 | E12: Дата заполнения/внесения изменений | F12: =IF(form_up_date="","",form_up_date) -> 27.04.2021 | G12: Указывается календарная дата первичного заполнения или внесения изменений в форму в виде «ДД.ММ.ГГГГ».
D13: 2.1 | E13: Наименование централизованной системы коммунальной инфраструктуры | F13: наименование отсутствует | G13: Указывается наименование централизованной системы холодного водоснабжения/горячего водоснабжения/водоотведения/теплоснабжения, к которой относится размещаемая информация. В случае наличия нескольких централизованных систем коммунальной инфраструктуры, информация по каждой из них указывается в отдельной строке.
D14: 3.1 | E14: Наименование регулируемого вида деятельности | F14: Водоотведение | G14: Указывается наименование вида регулируемой деятельности.
D15: 4.1 | E15: Территория оказания услуги по регулируемому виду деятельности | F15: x
D16: =D15&".1" -> 4.1.1 | E16: Субъект РФ | F16: =IF(region_name="","",region_name) -> Иркутская область | G16: Указывается наименование субъекта Российской Федерации
D17: 4.1.1.1 | E17: муниципальный район | F17: Город Саянск | G17: Указывается наименование муниципального района, на территории которого организация оказывает услуги по регулируемому виду деятельности.
D18: 4.1.1.1.1 | E18: муниципальное образование | F18: Город Саянск (25726000) | G18: Указывается наименование и код муниципального района, муниципального образования в соответствии с Общероссийским классификатором территорий муниципальных образований (далее - ОКТМО), входящего в муниципальный район, на территории которого организация оказывает услуги по регулируемому виду деятельности. В случае оказания услуг по регулируемому виду деятельности на территории нескольких муниципальных районов (муниципальных образований) данные по каждому их них указываются в отдельной строке.
E20: 1 Информация по данной форме публикуется при раскрытии информации по каждой из форм.

Sheet Форма 3.6
G1: 4 | H1: 5
D3: Информация об основных потребительских характеристиках регулируемых товаров и услуг регулируемой организации и их соответствии установленным требованиям
G6: 22
D7: Параметры формы | H7: Описание параметров формы
D8: № п/п | E8: Информация, подлежащая раскрытию | F8: Единица измерения | G8: Вид деятельности: - Водоотведение Территория оказания услуг: - без дифференциации Централизованная система водоотведения: - наименование отсутствует
G9: Информация
D10: 1 | E10: 2 | F10: 3 | G10: =G1 -> 4
D11: 1 | E11: Показатель аварийности на канализационных сетях | F11: ед. на км | G11: 0.02 | H11: Указывается количество любых нарушений на канализационных сетях.
D12: 2 | E12: Количество засоров на самотечных сетях | F12: ед. на км | G12: 321 | H12: Указывается количество засоров на самотечных сетях.
D13: 3 | E13: Общее количество проведенных проб на сбросе очищенных (частично очищенных) сточных вод: | F13: ед. | G13: 0 | H13: Указывается суммарное количество проведенных проб на сбросе очищенных вод.
D14: 3.1 | E14: взвешенные вещества | F14: ед. | G14: 0
D15: 3.2 | E15: БПК5 | F15: ед. | G15: 0
D16: 3.3 | E16: аммоний-ион | F16: ед. | G16: 0
D17: 3.4 | E17: нитрит-анион | F17: ед. | G17: 0
D18: 3.5 | E18: фосфаты (по Р) | F18: ед. | G18: 0
D19: 3.6 | E19: нефтепродукты | F19: ед. | G19: 0
D20: 3.7 | E20: микробиология | F20: ед. | G20: 0
D21: 4 | E21: Количество проведенных проб, выявивших несоответствие очищенных (частично очищенных) сточных вод санитарным нормам (предельно допустимой концентрации) на сбросе очищенных (частично очищенных) сточных вод: | F21: ед. | G21: 0 | H21: Указывается суммарное количество проведенных проб, выявивших несоответствие очищенных сточных вод санитарным нормам (предельно допустимой концентрации) на сбросе очищенных (частично очищенных) сточных вод.
D22: 4.1 | E22: взвешенные вещества | F22: ед. | G22: 0
D23: 4.2 | E23: БПК5 | F23: ед. | G23: 0
D24: 4.3 | E24: аммоний-ион | F24: ед. | G24: 0
D25: 4.4 | E25: нитрит-анион | F25: ед. | G25: 0
D26: 4.5 | E26: фосфаты (по Р) | F26: ед. | G26: 0
D27: 4.6 | E27: нефтепродукты | F27: ед. | G27: 0
D28: 4.7 | E28: микробиология | F28: ед. | G28: 0
D29: 5 | E29: Доля исполненных в срок договоров о подключении | F29: % | G29: 0 | H29: Указывается процент общего количества заключенных договоров о подключении.
D30: 6 | E30: Средняя продолжительность рассмотрения заявлений о подключении | F30: дн. | G30: 0
D31: 7 | E31: О результатах технического обследования централизованных систем водоотведения и (или) очистки сточных вод, в том числе: | F31: x | G31: https://portal.eias.ru/Portal/DownloadPage.aspx?type=12&guid=4297e30c-5a98-40e0-90e8-443b2bf21572 | H31: Указывается ссылка на документ, предварительно загруженный в хранилище файлов ФГИС ЕИАС.
D32: 7.1 | E32: о фактических значениях показателей технико-экономического состояния централизованных систем водоотведения и (или) очистки сточных вод, включая значения показателей физического износа и энергетической эффективности объектов централизованных систем водоотведения и (или) очистки сточных вод. | F32: x | G32: https://portal.eias.ru/Portal/DownloadPage.aspx?type=12&guid=4297e30c-5a98-40e0-90e8-443b2bf21572 | H32: Указывается ссылка на документ, предварительно загруженный в хранилище файлов ФГИС ЕИАС.
D33: 8 | E33: О нормативах допустимых сбросов веществ и микроорганизмов в водные объекты, установленных для объектов централизованных систем водоотведения, эксплуатируемых регулируемой организацией, в соответствии с законодательством Российской Федерации об охране окружающей среды (о лимитах на сбросы загрязняющих веществ и микроорганизмов, установленных для объектов централизованных систем водоотведения, эксплуатируемых регулируемой организацией, в соответствии с законодательством Российской Федерации об охране окружающей среды) | F33: x | G33: https://portal.eias.ru/Portal/DownloadPage.aspx?type=12&guid=4297e30c-5a98-40e0-90e8-443b2bf21572 | H33: Указывается ссылка на документ, предварительно загруженный в хранилище файлов ФГИС ЕИАС.
D34: 9 | E34: О показателях эффективности удаления загрязняющих веществ очистными сооружениями регулируемых организаций | F34: x | G34: https://portal.eias.ru/Portal/DownloadPage.aspx?type=12&guid=4297e30c-5a98-40e0-90e8-443b2bf21572 | H34: Указывается ссылка на документ, предварительно загруженный в хранилище файлов ФГИС ЕИАС.

Sheet Форма 1.0.1 | Форма 3.7 (hidden)
G1: 4
D5: Форма 1.0.1 Основные параметры раскрываемой информации 1
D6: =IF(org=0,"Не определено",org) -> МУП "Водоканал-Сервис"
C8: 22 | D8: Форма 1.0.1
D9: Параметры формы | G9: Описание параметров формы
A10: \ | D10: № п/п | F10: Информация
D11: 1 | E11: 2 | F11: 3 | G11: 4
D12: 1 | E12: Дата заполнения/внесения изменений | F12: =IF(form_up_date="","",form_up_date) -> 27.04.2021 | G12: Указывается календарная дата первичного заполнения или внесения изменений в форму в виде «ДД.ММ.ГГГГ».
D13: 2.1 | E13: Наименование централизованной системы коммунальной инфраструктуры | F13: наименование отсутствует | G13: Указывается наименование централизованной системы холодного водоснабжения/горячего водоснабжения/водоотведения/теплоснабжения, к которой относится размещаемая информация. В случае наличия нескольких централизованных систем коммунальной инфраструктуры, информация по каждой из них указывается в отдельной строке.
D14: 3.1 | E14: Наименование регулируемого вида деятельности | F14: Водоотведение | G14: Указывается наименование вида регулируемой деятельности.
D15: 4.1 | E15: Территория оказания услуги по регулируемому виду деятельности | F15: x
D16: =D15&".1" -> 4.1.1 | E16: Субъект РФ | F16: =IF(region_name="","",region_name) -> Иркутская область | G16: Указывается наименование субъекта Российской Федерации
D17: 4.1.1.1 | E17: муниципальный район | F17: Город Саянск | G17: Указывается наименование муниципального района, на территории которого организация оказывает услуги по регулируемому виду деятельности.
D18: 4.1.1.1.1 | E18: муниципальное образование | F18: Город Саянск (25726000) | G18: Указывается наименование и код муниципального района, муниципального образования в соответствии с Общероссийским классификатором территорий муниципальных образований (далее - ОКТМО), входящего в муниципальный район, на территории которого организация оказывает услуги по регулируемому виду деятельности. В случае оказания услуг по регулируемому виду деятельности на территории нескольких муниципальных районов (муниципальных образований) данные по каждому их них указываются в отдельной строке.
E20: 1 Информация по данной форме публикуется при раскрытии информации по каждой из форм.

Sheet Форма 3.7 (hidden)
F5: Информация об инвестиционных программах регулируемой организации1
F7: Параметры формы | M7: Описание параметров формы
F8: № п/п | G8: Наименование параметра | H8: Единица измерения
I9: Инвестиционная программа в целом | J9: Мероприятие2 | K9: Добавить мероприятие
F10: 1 | G10: 2 | H10: 3 | I10: 4 | J10: 4.0
F11: 1 | G11: Наименование инвестиционной программы/мероприятия | H11: x
F12: 2 | G12: Дата утверждения инвестиционной программы | H12: x | J12: x | M12: Дата утверждения инвестиционной программы указывается в виде «ДД.ММ.ГГГГ».
F13: 2.1 | G13: Дата изменения инвестиционной программы | H13: x | J13: x | M13: Дата изменения инвестиционной программы указывается (в случае наличия изменения) в виде «ДД.ММ.ГГГГ».
F14: 3 | G14: Цель инвестиционной программы | H14: x | J14: x | M14: Цель инвестиционной программы определяется из перечня: Автоматизация (с уменьшением штата); Уменьшение удельных затрат (повышение коэффициента полезного действия); Уменьшение издержек на производство; Снижение аварийности; Прочее Возможен выбор нескольких пунктов.
F15: 4 | G15: Наименование уполномоченного органа, утвердившего программу | H15: x | J15: x | M15: Указывается уполномоченный в соответствии с законодательством Российской Федерации орган власти, утвердивший инвестиционную программу.
F16: 5 | G16: Наименование органа местного самоуправления, согласовавшего инвестиционную программу | H16: x | J16: x
F17: 6 | G17: Срок начала реализации инвестиционной программы/мероприятия | H17: x | M17: Срок начала реализации инвестиционной программы/мероприятия указывается в виде «ДД.ММ.ГГГГ».
F18: 7 | G18: Срок окончания реализации инвестиционной программы/мероприятия | H18: x | M18: Срок окончания реализации инвестиционной программы/мероприятия указывается в виде «ДД.ММ.ГГГГ».
F19: 8 | G19: Потребность в финансовых средствах, необходимых для реализации инвестиционной программы, в том числе с разбивкой по годам, мероприятиям и источникам финансирования инвестиционной программы: | H19: тыс. руб. | I19: =SUM(J19:K19) -> 0 | J19: =SUMIF(List06_flag_year,"y",J20:J26) -> 0 | M19: Указывается суммарная потребность в финансовых средствах, необходимых для реализации инвестиционной программы, по всем источникам финансирования.
B20: 8.0 | F20: =B20 -> 8.0 | H20: тыс. руб. | I20: =SUM(I21:I22) -> 0 | J20: =SUM(J21:J22) -> 0 | K20: y | M20: Год реализации инвестиционной программы/мероприятия должен содержаться в сроке реализации инвестиционной программы, определенном в пунктах 6 и 7 данной формы. В случае реализации инвестиционной программы/мероприятия в течение нескольких лет информация по каждому году указывается в отдельных строках.
C21: 1 | F21: =B20&"."&C21 -> 8.0.1 | H21: тыс. руб. | K21: i | M21: Вид источника финансирования определяется из перечня: Кредиты банков; Кредиты иностранных банков; Заемные средства др. организаций; Федеральный бюджет; Бюджет субъекта Российской Федерации; Бюджет муниципального образования; Средства внебюджетных фондов; Прибыль, направленная на инвестиции; Амортизация; Инвестиционная надбавка к тарифу; Плата за подключение (технологическое присоединение); Прочие средства. В случае наличия нескольких источников финансирования информация по каждому из них указывается в отдельных строках.
G22: Добавить источники
B23: 8.1 | F23: =B23 -> 8.1 | H23: тыс. руб. | I23: =SUM(I24:I25) -> 0 | J23: =SUM(J24:J25) -> 0 | K23: y | M23: Год реализации инвестиционной программы/мероприятия должен содержаться в сроке реализации инвестиционной программы, определенном в пунктах 6 и 7 данной формы. В случае реализации инвестиционной программы/мероприятия в течение нескольких лет информация по каждому году указывается в отдельных строках.
C24: 1 | F24: =B23&"."&C24 -> 8.1.1 | H24: тыс. руб. | K24: i | M24: Вид источника финансирования определяется из перечня: Кредиты банков; Кредиты иностранных банков; Заемные средства др. организаций; Федеральный бюджет; Бюджет субъекта Российской Федерации; Бюджет муниципального образования; Средства внебюджетных фондов; Прибыль, направленная на инвестиции; Амортизация; Инвестиционная надбавка к тарифу; Плата за подключение (технологическое присоединение); Прочие средства. В случае наличия нескольких источников финансирования информация по каждому из них указывается в отдельных строках.
G25: Добавить источники
G26: Добавить год
F27: 9 | G27: Целевые показатели инвестиционной программы | H27: x | I27: x | J27: x
F28: 9.1 | G28: Срок окупаемости | H28: x | I28: x | J28: x
F29: 9.1.1 | G29: Факт | H29: лет
F30: 9.1.2 | G30: План | H30: лет
F31: 9.2 | G31: Перебои в снабжении потребителей | H31: x | I31: x | J31: x
F32: 9.2.1 | G32: Факт | H32: час./чел. | M32: Указывается фактическое значение отношения суммы произведений продолжительности отключений и количества пострадавших потребителей от каждого из этих отключений к количеству потребителей, проживающих в домах, в которых проходили отключения в отчетном периоде.
F33: 9.2.2 | G33: План | H33: час./чел. | M33: Указывается плановое значение отношения суммы произведений продолжительности отключений и количества пострадавших потребителей от каждого из этих отключений к количеству потребителей, проживающих в домах, в которых проходили отключения в отчетном периоде.
F34: 9.3 | G34: Продолжительность (бесперебойность) поставки товаров и услуг | H34: x | I34: x | J34: x
F35: 9.3.1 | G35: Факт | H35: час./день | M35: Указывается фактическое значение отношения количества часов предоставления услуг к количеству календарных дней в отчетном периоде.
F36: 9.3.2 | G36: План | H36: час./день | M36: Указывается плановое значение отношения количества часов предоставления услуг к количеству календарных дней в отчетном периоде.
F37: 9.4 | G37: Доля потерь и неучтенного потребления | H37: x | I37: x | J37: x
F38: 9.4.1 | G38: Факт | H38: % | M38: Указывается фактическое значение доли потерь и неучтенного потребления воды в общем объеме воды, поданной в водопроводную сеть в отчетном периоде.
F39: 9.4.2 | G39: План | H39: % | M39: Указывается плановое значение доли потерь и неучтенного потребления воды в общем объеме воды, поданной в водопроводную сеть в отчетном периоде.
F40: 9.5 | G40: Обеспеченность потребления товаров и услуг приборами учета | H40: x | I40: x | J40: x
F41: 9.5.1 | G41: Факт | H41: %
F42: 9.5.2 | G42: План | H42: %
F43: 9.6 | G43: Численность населения, получающего услуги данной организации | H43: x | I43: x | J43: x
F44: 9.6.1 | G44: Факт | H44: чел. | M44: Указывается фактическое значение численности населения, проживающего в многоквартирных и жилых домах, подключенных к системе водоотведения и (или) очистки сточных вод в отчетном периоде.
F45: 9.6.2 | G45: План | H45: чел. | M45: Указывается плановое значение численности населения, проживающего в многоквартирных и жилых домах, подключенных к системе водоотведения и (или) очистки сточных вод в отчетном периоде.
F46: 9.7 | G46: Удельное водопотребление | H46: x | I46: x | J46: x
F47: 9.7.1 | G47: Факт | H47: куб. м/чел. | M47: Указывается фактическое значение объема потребления воды в расчете на одного человека, получающего услуги организации в отчетном периоде.
F48: 9.7.2 | G48: План | H48: куб. м/чел. | M48: Указывается плановое значение объема потребления воды в расчете на одного человека, получающего услуги организации в отчетном периоде.
F49: 9.8 | G49: Удельный расход электроэнергии | H49: x | I49: x | J49: x
F50: 9.8.1 | G50: Факт | H50: кВт.ч/куб. м | M50: Указывается фактическое значение расхода электроэнергии на производство и поставку в отчетном периоде.
F51: 9.8.2 | G51: План | H51: кВт.ч/куб. м | M51: Указывается плановое значение расхода электроэнергии на производство и поставку в отчетном периоде.
F52: 9.9 | G52: Количество аварий | H52: x | I52: x | J52: x
F53: 9.9.1 | G53: Факт | H53: ед./км | M53: Указывается фактическое значение отношения количества аварий на системах коммунальной инфраструктуры к протяженности сетей в отчетном периоде.
F54: 9.9.2 | G54: План | H54: ед./км | M54: Указывается плановое значение отношения количества аварий на системах коммунальной инфраструктуры к протяженности сетей в отчетном периоде.
F55: 9.10 | G55: Производительность труда | H55: x | I55: x | J55: x | M55: В случае наличия дополнительных целевых показателей инвестиционной программы информация по ним указывается в отдельных строках.
F56: 9.10.1 | G56: Факт | H56: тыс. руб./чел. | M56: Указывается фактическое значение отношение фонда оплаты труда к численности всех рабочих основного вида деятельности организации. В число рабочих основного вида деятельности включаются рабочие, занятые на производственных процессах по подъему, очистке и транспортировке воды.
F57: 9.10.2 | G57: План | H57: тыс. руб./чел. | M57: Указывается плановое значение отношение фонда оплаты труда к численности всех рабочих основного вида деятельности организации. В число рабочих основного вида деятельности включаются рабочие, занятые на производственных процессах по подъему, очистке и транспортировке воды.
B58: 9.10 | F58: =B58 -> 9.10 | I58: x | J58: x
F59: =B58&".1" -> 9.10.1 | G59: Факт | H59: =IF(H58="","x",H58) -> x
F60: =B58&".2" -> 9.10.2 | G60: План | H60: =IF(H58="","x",H58) -> x
G61: Добавить показатель
B62: print | F62: 10 | G62: Использование инвестиционных средств за отчетный период | H62: x | I62: x | J62: x
B63: 10.0 | F63: =B63 -> 10.0 | G63: Использовано инвестиционных средств всего в отчетном периоде, в том числе: | H63: тыс. руб. | I63: =SUM(I64:I67) -> 0 | J63: =SUM(J64:J67) -> 0 | M63: Указывается сумма использованных инвестиционных средства по всем источникам финансирования в отчетном периоде.
F64: =B63&".1" -> 10.0.1 | G64: I квартал | H64: тыс. руб. | I64: =SUMIF($G$68:$G$78,$G64,I$68:I$78) -> 0 | J64: 0 | M64: Указывается сумма использованных инвестиционных средств в I квартале отчетного периода по всем источникам финансирования.
F65: =B63&".2" -> 10.0.2 | G65: II квартал | H65: тыс. руб. | I65: 0 | J65: 0 | M65: Указывается сумма использованных инвестиционных средств в II квартале отчетного периода по всем источникам финансирования.
F66: =B63&".3" -> 10.0.3 | G66: III квартал | H66: тыс. руб. | I66: 0 | J66: 0 | M66: Указывается сумма использованных инвестиционных средств в III квартале отчетного периода по всем источникам финансирования.
F67: =B63&".4" -> 10.0.4 | G67: IV квартал | H67: тыс. руб. | I67: 0 | J67: 0 | M67: Указывается сумма использованных инвестиционных средств в IV квартале отчетного периода по всем источникам финансирования.
B68: 10.0 | F68: =B68 -> 10.0 | H68: тыс. руб. | I68: =SUM(I69:I72) -> 0 | J68: =SUM(J69:J72) -> 0 | K68: =G68 -> 0 | M68: Вид источника финансирования определяется из перечня: Кредиты банков; Кредиты иностранных банков; Заемные средства др. организаций; Федеральный бюджет; Бюджет субъекта Российской Федерации; Бюджет муниципального образования; Средства внебюджетных фондов; Прибыль, направленная на инвестиции; Амортизация; Инвестиционная надбавка к тарифу; Плата за подключение (технологическое присоединение); Прочие средства. В случае наличия нескольких источников финансирования информация по каждому из них указывается в отдельных строках.
F69: =B68&".1" -> 10.0.1 | G69: I квартал | H69: тыс. руб.
F70: =B68&".2" -> 10.0.2 | G70: II квартал | H70: тыс. руб.
F71: =B68&".3" -> 10.0.3 | G71: III квартал | H71: тыс. руб.
F72: =B68&".4" -> 10.0.4 | G72: IV квартал | H72: тыс. руб.
B73: 10.1 | F73: =B73 -> 10.1 | H73: тыс. руб. | I73: =SUM(I74:I77) -> 0 | J73: =SUM(J74:J77) -> 0 | K73: =G73 -> 0 | M73: Вид источника финансирования определяется из перечня: Кредиты банков; Кредиты иностранных банков; Заемные средства др. организаций; Федеральный бюджет; Бюджет субъекта Российской Федерации; Бюджет муниципального образования; Средства внебюджетных фондов; Прибыль, направленная на инвестиции; Амортизация; Инвестиционная надбавка к тарифу; Плата за подключение (технологическое присоединение); Прочие средства. В случае наличия нескольких источников финансирования информация по каждому из них указывается в отдельных строках.
F74: =B73&".1" -> 10.1.1 | G74: I квартал | H74: тыс. руб.
F75: =B73&".2" -> 10.1.2 | G75: II квартал | H75: тыс. руб.
F76: =B73&".3" -> 10.1.3 | G76: III квартал | H76: тыс. руб.
F77: =B73&".4" -> 10.1.4 | G77: IV квартал | H77: тыс. руб.
G78: Добавить источники
F80: 1 | G80: Информация раскрывается в случае, если регулируемая организация выполняет или планирует выполнение инвестиционной программы в отчетном периоде.
F81: 2 | G81: В случае выполнения нескольких мероприятий информация по каждому из них указывается в отдельной колонке

Sheet Форма 1.0.2 (hidden)
D5: Форма 1.0.2 Информация о публикации в печатных изданиях 2
D8: Параметры формы | K8: Описание параметров формы
D9: № п/п | E9: Форма публикации | G9: Официальное печатное издание
E10: Номер | F10: Наименование | G10: Наименование | H10: Номер | I10: Дата выпуска | J10: Ссылка на документ
D11: 1 | E11: 2 | F11: 3 | G11: 4 | H11: 5 | I11: 6 | J11: 7
A12: 3 | D12: 1 | K12: В колонке «Дата выпуска» дата выпуска печатного издания указывается в виде «ДД.ММ.ГГГГ». В колонке «Ссылка на документ» указывается ссылка на отсканированную копию печатного издания, предварительно загруженную в хранилище федеральной государственной информационной системы «Единая информационно-аналитическая система «Федеральный орган регулирования - региональные органы регулирования - субъекты регулирования» (далее – ФГИС ЕИАС), с опубликованной информацией. В случае публикации информации в нескольких печатных изданиях информация по каждому из них указывается в отдельной строке. | M12: =IF(ISERROR(INDEX(kind_of_nameforms,MATCH(E12,kind_of_forms,0),1)),"",INDEX(kind_of_nameforms,MATCH(E12,kind_of_forms,0),1)) -> 
E13: Добавить строку
E15: 2 В данной форме публикуется информация по каждой из форм раскрытия, данные в которой относятся к муниципальному образованию, в котором отсутствует доступ в информационно-телекоммуникационную сеть «Интернет» (далее – сеть «Интернет»).

Sheet Сведения об изменении (hidden)
D7: Сведения об изменениях в первоначально опубликованной информации
D8: =IF(org=0,"Не определено",org) -> МУП "Водоканал-Сервис"
D10: № п/п | E10: Сведения
D11: 1 | E11: 2
D12: 0
D13: 1
E14: Добавить строку

Sheet Комментарии
D7: Комментарии
D8: =IF(org=0,"Не определено",org) -> МУП "Водоканал-Сервис"
D10: № п/п | E10: Комментарий
D11: 1 | E11: 2
D12: 0
C13: О | D13: 1 | E13: Выручка по водоотведению в таблице стоит в соответствии с "Отчетом о прибылях и убытках" за 2020г. и равна 54615 т.р. Строка в форме 3.5.1 для отражения размера субсидии отсутствует. Поэтому валовый убыток будет равен: 54615 т.р.+2969 т.р.(субсидии)-63391 т.р.(себестоимость)=-5807 т.р.
E14: Добавить

Sheet Проверка
B2: Результат проверки
B4: Ссылка1 | C4: Ссылка2 | D4: Причина | E4: Статус

Sheet modReestr (hidden)

Sheet AllSheetsInThisWorkbook (hidden)
A1: Расчетные листы | B1: Скрытые листы
A2: Инструкция | B2: modProv
A3: Лог обновления | B3: modReestr
A4: Титульный | B4: AllSheetsInThisWorkbook
A5: Территории | B5: modCheckCyan
A6: Дифференциация | B6: modInfo
A7: Форма 1.0.1 | Форма 3.5.1 | B7: TEHSHEET
A8: Форма 3.5.1 | B8: modfrmSelectData
A9: Форма 3.5.2 | B9: modList06
A10: Форма 3.6 | B10: modList01
A11: Форма 3.7 | B11: modList05
A12: Форма 1.0.2 | B12: modList08
A13: Сведения об изменении | B13: et_union_hor
A14: Комментарии | B14: et_union_vert
A15: Проверка | B15: modList00
B16: modList02
B17: modList03
B18: modList04
B19: modList07
B20: modList09
B21: modHTTP
B22: modfrmRegion
B23: MR_LIST
B24: REESTR_VT
B25: REESTR_VED
B26: modfrmReestrObj
B27: DataOrg
B28: modfrmReestr
B29: modUpdTemplMain
B30: REESTR_ORG
B31: modClassifierValidate
B32: modHyp
B33: modfrmDateChoose
B34: modComm
B35: modThisWorkbook
B36: REESTR_MO
B37: REESTR_MO_FILTER
B38: modfrmReestrMR
B39: modServiceModule
B40: modfrmCheckUpdates
B41: REESTR_DS
B42: REESTR_CHS
B43: REESTR_LINK

Sheet modCheckCyan (hidden)
A2: =IF(Дифференциация!$E$22="",1,0) -> 0
A3: =IF('Сведения об изменении'!$E$13="",1,0) -> 1
A4: =IF(Территории!$E$12="",1,0) -> 0
A5: =IF('Форма 3.5.1'!$G$17="",1,0) -> 0
A6: =IF('Форма 3.5.1'!$G$19="",1,0) -> 0
A7: =IF('Форма 3.5.1'!$G$20="",1,0) -> 0
A8: =IF('Форма 3.5.1'!$G$21="",1,0) -> 0
A9: =IF('Форма 3.5.1'!$G$22="",1,0) -> 0
A10: =IF('Форма 3.5.1'!$G$23="",1,0) -> 0
A11: =IF('Форма 3.5.1'!$G$24="",1,0) -> 0
A12: =IF('Форма 3.5.1'!$G$25="",1,0) -> 0
A13: =IF('Форма 3.5.1'!$G$26="",1,0) -> 0
A14: =IF('Форма 3.5.1'!$G$27="",1,0) -> 0
A15: =IF('Форма 3.5.1'!$G$28="",1,0) -> 0
A16: =IF('Форма 3.5.1'!$G$29="",1,0) -> 0
A17: =IF('Форма 3.5.1'!$G$30="",1,0) -> 0
A18: =IF('Форма 3.5.1'!$G$31="",1,0) -> 0
A19: =IF('Форма 3.5.1'!$G$32="",1,0) -> 0
A20: =IF('Форма 3.5.1'!$G$33="",1,0) -> 0
A21: =IF('Форма 3.5.1'!$G$34="",1,0) -> 0
A22: =IF('Форма 3.5.1'!$G$35="",1,0) -> 0
A23: =IF('Форма 3.5.1'!$G$36="",1,0) -> 0
A24: =IF('Форма 3.5.1'!$G$38="",1,0) -> 0
A25: =IF('Форма 3.5.1'!$G$44="",1,0) -> 0
A26: =IF('Форма 3.5.1'!$G$45="",1,0) -> 0
A27: =IF('Форма 3.5.1'!$G$46="",1,0) -> 0
A28: =IF('Форма 3.5.1'!$G$47="",1,0) -> 0
A29: =IF('Форма 3.5.1'!$G$48="",1,0) -> 0
A30: =IF('Форма 3.5.1'!$G$49="",1,0) -> 0
A31: =IF('Форма 3.5.1'!$G$50="",1,0) -> 0
A32: =IF('Форма 3.5.1'!$G$51="",1,0) -> 0
A33: =IF('Форма 3.5.1'!$G$52="",1,0) -> 0
A34: =IF('Форма 3.5.1'!$G$53="",1,0) -> 0
A35: =IF('Форма 3.5.1'!$G$54="",1,0) -> 0
A36: =IF('Форма 3.5.1'!$G$55="",1,0) -> 0
A37: =IF('Форма 3.5.1'!$G$56="",1,0) -> 0
A38: =IF('Форма 3.6'!$G$12="",1,0) -> 0
A39: =IF('Форма 3.6'!$G$13="",1,0) -> 0
A40: =IF('Форма 3.6'!$G$14="",1,0) -> 0
A41: =IF('Форма 3.6'!$G$15="",1,0) -> 0
A42: =IF('Форма 3.6'!$G$16="",1,0) -> 0
A43: =IF('Форма 3.6'!$G$17="",1,0) -> 0
A44: =IF('Форма 3.6'!$G$18="",1,0) -> 0
A45: =IF('Форма 3.6'!$G$19="",1,0) -> 0
A46: =IF('Форма 3.6'!$G$20="",1,0) -> 0
A47: =IF('Форма 3.6'!$G$21="",1,0) -> 0
A48: =IF('Форма 3.6'!$G$22="",1,0) -> 0
A49: =IF('Форма 3.6'!$G$23="",1,0) -> 0
A50: =IF('Форма 3.6'!$G$24="",1,0) -> 0
A51: =IF('Форма 3.6'!$G$25="",1,0) -> 0
A52: =IF('Форма 3.6'!$G$26="",1,0) -> 0
A53: =IF('Форма 3.6'!$G$27="",1,0) -> 0
A54: =IF('Форма 3.6'!$G$28="",1,0) -> 0
A55: =IF('Форма 3.6'!$G$29="",1,0) -> 0
A56: =IF('Форма 3.6'!$G$30="",1,0) -> 0
A57: =IF('Форма 3.6'!$G$31="",1,0) -> 0
A58: =IF('Форма 3.6'!$G$32="",1,0) -> 0
A59: =IF('Форма 3.6'!$G$33="",1,0) -> 0
A60: =IF('Форма 3.6'!$G$34="",1,0) -> 0
A61: =IF('Форма 3.6'!$G$11="",1,0) -> 0
A62: =IF('Форма 3.7'!$I$11="",1,0) -> 1
A63: =IF('Форма 3.7'!$I$12="",1,0) -> 1
A64: =IF('Форма 3.7'!$I$13="",1,0) -> 1
A65: =IF('Форма 3.7'!$I$15="",1,0) -> 1
A66: =IF('Форма 3.7'!$I$16="",1,0) -> 1
A67: =IF('Форма 3.7'!$I$17="",1,0) -> 1
A68: =IF('Форма 3.7'!$I$18="",1,0) -> 1
A69: =IF('Форма 3.7'!$G$23="",1,0) -> 1
A70: =IF('Форма 3.7'!$G$24="",1,0) -> 1
A71: =IF('Форма 3.7'!$I$24="",1,0) -> 1
A72: =IF('Форма 3.7'!$G$73="",1,0) -> 1
A73: =IF('Форма 3.7'!$I$74="",1,0) -> 1
A74: =IF('Форма 3.7'!$I$75="",1,0) -> 1
A75: =IF('Форма 3.7'!$I$76="",1,0) -> 1
A76: =IF('Форма 3.7'!$I$77="",1,0) -> 1

Sheet modInfo (hidden)
B1: Территории
A2: 1 | B2: Наименование территории оказания услуг для целей идентификации
A3: 2 | B3: Муниципальные районы и муниципальные образования, на территории которых осуществляется оказание услуг
B4: Дифференциация
A5: 1 | B5: В случае, если регулируемая организация осуществляет несколько видов деятельности, информация о которых подлежит раскрытию, информация по каждому виду деятельности раскрывается отдельно.
A6: 2 | B6: Поле заполняется выбором значений из списка. Если значений для выбора нет - убедитесь, что лист "Территории" заполнен.
A7: 3 | B7: Условное наименование централизованной системы коммунальной инфраструктуры для целей идентификации.
A8: 4 | B8: В случае, если регулируемыми организациями оказываются услуги по нескольким технологически не связанным между собой централизованным системам коммунальной инфраструктуры и если в отношении указанных централизованных систем устанавливаются различные тарифы, то информация раскрывается отдельно по каждой централизованной системе коммунальной инфраструктуры.
B9: Сведения об изменении
A10: 1 | B10: Лист заполняется в случае, если на Титульном листе в поле "Тип отчета" выбрано значение «Изменения в раскрытой ранее информации».
B11: Нет доступных обновлений, версия отчёта актуальна

Sheet TEHSHEET (hidden)
A1: REGION | C1: year_list | D1: logical | E1: Месяц (MONTH) | F1: Квартал (QUARTER) | G1: Месяц (kind_of_publication) | H1: Единица измерения объема оказываемых услуг ГВС /kind_of_unit_GVS/ | I1: Вид тарифа /list_of_tariff/ | J1: mr_id | K1: версия шаблона (DocProp_Version) | L1: 0.1 | M1: Тип отчета data_type | O1: Источники финансирования /source_of_funding/ | P1: цель инвестиционной программы /kind_of_purchase_method/ | S1: Перечень форм (kind_of_forms) | V1: цель инвестиционной программы /objective_of_IPR/
A2: Алтайский край | C2: 2018 | D2: да | E2: январь | F2: I квартал | G2: На официальном сайте организации | H2: тыс.куб.м/сутки | J2: 52 | K2: код шаблона (DocProp_TemplateCode) | L2: FAS.JKH.OPEN.INFO.BALANCE.HVS | M2: первичное раскрытие информации | O2: кредиты банков | P2: Торги/аукционы | S2: Форма 1.0.1 | T2: Основные параметры раскрываемой информации | V2: автоматизация (с уменьшением штата) | W2: FALSE
A3: Амурская область | C3: 2019 | D3: нет | E3: февраль | F3: II квартал | G3: На сайте регулирующего органа | H3: Гкал/час | I3: Без дифференциации | J3: sys_id | K3: сфера (TSphere) | L3: ХВС | M3: изменения в раскрытой ранее информации | O3: кредиты иностранных банков | P3: Прямые договора без торгов | S3: Форма 3.5.1 | T3: Информация об основных показателях финансово-хозяйственной деятельности регулируемой организации, включая структуру основных производственных затрат (в части регулируемой деятельности) | V3: уменьшение удельных затрат (повышение КПД) | W3: FALSE
A4: Архангельская область | C4: 2020 | E4: март | F4: III квартал | H4: куб.м/час | J4: 104 | K4: сфера(латиница) (TSphere_trans) | L4: VS | O4: заемные средства др. организаций | P4: Прочее | S4: Форма 3.5.2 | T4: Информация о расходах на капитальный и текущий ремонт основных производственных средств, расходах на услуги производственного характера | V4: уменьшение издержек на производство | W4: FALSE
A5: Астраханская область | C5: 2021 | E5: апрель | F5: IV квартал | K5: сфера расширено (TSphere_full) | O5: федеральный бюджет | S5: Форма 3.6 | T5: Информация об основных потребительских характеристиках регулируемых товаров и услуг регулируемой организации и их соответствии установленным требованиям | V5: снижение аварийности | W5: FALSE
A6: Белгородская область | E6: май | O6: бюджет субъекта Российской Федерации | S6: Форма 3.7 | T6: Информация об инвестиционных программах регулируемой организации | V6: прочее | W6: FALSE
A7: Брянская область | E7: июнь | O7: бюджет муниципального образования
A8: Владимирская область | E8: июль | K8: true | O8: средства внебюджетных фондов
A9: Волгоградская область | E9: август | O9: прибыль, направленная на инвестиции
A10: Вологодская область | E10: сентябрь | O10: амортизация
A11: Воронежская область | E11: октябрь | O11: инвестиционная надбавка к тарифу
A12: г.Байконур | E12: ноябрь | O12: плата за подключение (технологическое присоединение)
A13: г. Москва | E13: декабрь | O13: прочие средства
A14: г.Санкт-Петербург
A15: г.Севастополь
A16: Еврейская автономная область | G16: Текущая дата
A17: Забайкальский край | C17: Организация | D17: =IF(f_year = "","", "01.01."&f_year) -> 01.01.2020 | E17: =IF(f_year = "","", "31.12."& f_year) -> 31.12.2020 | G17: 27.04.2021 15:03:04
A18: Ивановская область
A19: Иркутская область | G19: Признак изменения данных на листе Доступ к товарам и услугам
A20: Кабардино-Балкарская республика | C20: Виды деятельности | G20: TRUE
A21: Калининградская область
A22: Калужская область
A23: Камчатский край
A24: Карачаево-Черкесская республика
A25: Кемеровская область
A26: Кировская область
A27: Костромская область
A28: Краснодарский край
A29: Красноярский край
A30: Курганская область
A31: Курская область
A32: Ленинградская область
A33: Липецкая область
A34: Магаданская область
A35: Московская область
A36: Мурманская область
A37: Ненецкий автономный округ
A38: Нижегородская область
A39: Новгородская область
A40: Новосибирская область
A41: Омская область
A42: Оренбургская область
A43: Орловская область
A44: Пензенская область
A45: Пермский край
A46: Приморский край
A47: Псковская область
A48: Республика Адыгея
A49: Республика Алтай
A50: Республика Башкортостан
A51: Республика Бурятия
A52: Республика Дагестан
A53: Республика Ингушетия
A54: Республика Калмыкия
A55: Республика Карелия
A56: Республика Коми
A57: Республика Крым
A58: Республика Марий Эл
A59: Республика Мордовия
A60: Республика Саха (Якутия)
A61: Республика Северная Осетия-Алания
A62: Республика Татарстан
A63: Республика Тыва
A64: Республика Хакасия
A65: Ростовская область
A66: Рязанская область
A67: Самарская область
A68: Саратовская область
A69: Сахалинская область
A70: Свердловская область
A71: Смоленская область
A72: Ставропольский край
A73: Тамбовская область
A74: Тверская область
A75: Томская область
A76: Тульская область
A77: Тюменская область
A78: Удмуртская республика
A79: Ульяновская область
A80: Хабаровский край
A81: Ханты-Мансийский автономный округ
A82: Челябинская область
A83: Чеченская республика
A84: Чувашская республика
A85: Чукотский автономный округ
A86: Ямало-Ненецкий автономный округ
A87: Ярославская область

Sheet modfrmSelectData (hidden)

Sheet modList06 (hidden)

Sheet modList01 (hidden)

Sheet modList08 (hidden)

Sheet et_union_hor (hidden)
A3: et_Comm
A7: et_List04
A13: et_List09_0
B15: auto | D15: 1 | G15: 0 | J15: 0 | M15: =mergeValue(H15) -> 0 | P15: =IF(ISERROR(MATCH(MID(Q15,1,250),MID(note_ter,1,250),0)),"n","y") -> y | R15: =K15&"("&L15&")" -> ()
H16: Добавить МР
A18: et_List09_1
B20: auto | G20: 0 | J20: 0 | M20: =mergeValue(H20) -> 0 | R20: =K20&"("&L20&")" -> ()
K21: Добавить МО
A23: et_List09_2
B25: auto | J25: 0 | M25: =mergeValue(H25) -> 0 | R25: =K25&" ("&L25&")" -> ()
A27: et_List07_1
D29: 1 | F29: нет | H29: 1 | J29: нет | L29: 1 | Y29: a | Z29: 1705000
M30: Добавить централизованную систему коммунальной инфраструктуры
I31: Добавить описание территории оказания услуг
A33: et_List07_4
H35: 1 | J35: нет | L35: 1 | Y35: a | Z35: 1705000
M36: Добавить централизованную систему коммунальной инфраструктуры
A38: et_List07_5
L40: 1 | Y40: a | Z40: 1705000
A43: et_List03
A45: 3 | M45: =IF(ISERROR(INDEX(kind_of_nameforms,MATCH(E45,kind_of_forms,0),1)),"",INDEX(kind_of_nameforms,MATCH(E45,kind_of_forms,0),1)) -> 
A47: et_List02_st | B47: et_List02_ter | C47: et_List02_mr | D47: et_List02_mo
D50: Форма 1.0.1
D51: Параметры формы | G51: Описание параметров формы
A52: \ | D52: № п/п | F52: Информация
D53: 1 | E53: 2 | F53: 3 | G53: 4
D54: 1 | E54: Дата заполнения/внесения изменений | F54: =IF(form_up_date="","",form_up_date) -> 27.04.2021 | G54: Указывается календарная дата первичного заполнения или внесения изменений в форму в виде «ДД.ММ.ГГГГ».
D55: 2.1 | E55: Наименование централизованной системы коммунальной инфраструктуры | G55: Указывается наименование централизованной системы холодного водоснабжения/горячего водоснабжения/водоотведения/теплоснабжения, к которой относится размещаемая информация. В случае наличия нескольких централизованных систем коммунальной инфраструктуры, информация по каждой из них указывается в отдельной строке.
D56: 3.1 | E56: Наименование регулируемого вида деятельности | G56: Указывается наименование вида регулируемой деятельности.
D57: 4.1 | E57: Территория оказания услуги по регулируемому виду деятельности | F57: x
D58: =D57&".1" -> 4.1.1 | E58: Субъект РФ | F58: =IF(region_name="","",region_name) -> Иркутская область | G58: Указывается наименование субъекта Российской Федерации
D59: 4.1.1.1 | E59: муниципальный район | G59: Указывается наименование муниципального района, на территории которого организация оказывает услуги по регулируемому виду деятельности.
D60: 4.1.1.1.1 | E60: муниципальное образование | G60: Указывается наименование и код муниципального района, муниципального образования в соответствии с Общероссийским классификатором территорий муниципальных образований (далее - ОКТМО), входящего в муниципальный район, на территории которого организация оказывает услуги по регулируемому виду деятельности. В случае оказания услуг по регулируемому виду деятельности на территории нескольких муниципальных районов (муниципальных образований) данные по каждому их них указываются в отдельной строке.
A66: et_List05_4
D68: 1 | AG68: NOTSHOW | AH68: 3
E69: Информация об объемах товаров и услуг, их стоимости и способах приобретения у организаций, в том числе: | Q69: =SUMIF(T70:T71,"i",Q70:Q71) -> 0 | S69: Указывается сумма стоимости приобретения товаров и услуг у организаций, сумма оплаты услуг которых превышает 20% суммы расходов на капитальный и текущий ремонт основных производственных средства | T69: i | U69: 1 | V69: =INDEX(List01_flag_index_1,1,MATCH(A68,List01_NumberColumns,0)) -> 
F70: 0
E72: Расходы на услуги производственного характера, выполняемые по договорам с организациями на проведение регламентных работ в рамках технологического процесса. Из них товары и услуги, приобретенные у организаций, сумма оплаты услуг которых превышает 20% суммы расходов по статье: | Q72: =SUMIF(T73:T74,"i",Q73:Q74) -> 0 | S72: Указывается сумма стоимости приобретения товаров и услуг у организаций, сумма оплаты услуг которых превышает 20% суммы расходов на капитальный и текущий ремонт основных производственных средства | T72: i | U72: 2 | V72: =INDEX(List01_flag_index_2,1,MATCH(A68,List01_NumberColumns,0)) -> 
F73: 0
A76: et_List05_4
D78: 1 | AG78: NOTSHOW | AH78: 3
F79: 1 | G79: Информация об объемах товаров и услуг, их стоимости и способах приобретения у организаций, в том числе: | Q79: =SUMIF(T80:T85,"i",Q80:Q85) -> 0 | S79: Указывается сумма стоимости приобретения товаров и услуг у организаций, сумма оплаты услуг которых превышает 20% суммы расходов на капитальный и текущий ремонт основных производственных средства | T79: i | U79: 1 | V79: =INDEX(List01_flag_index_1,1,MATCH(A78,List01_NumberColumns,0)) -> 
F80: 0
F81: 1.1 | I81: 1 | J81: Итого по поставщику, в том числе | K81: х | L81: х | N81: х | O81: х | P81: х | Q81: =SUM(Q82:Q84) -> 0 | R81: =nerr(Q81/List01_costs_OPS)*100 -> 0 | S81: Указывается информация отдельно по организациям, сумма оплаты услуг которых превышает 20% суммы расходов на капитальный и текущий ремонт основных производственных средства. Способ приобретения определяется из перечня: Торги/аукционы; Прямые договора без торгов; Прочее В случае наличия нескольких поставщиков, договоров, товаров и (или) услуг информация по ним указывается в отдельных строках. | T81: i
I82: 1.1 | M82: 1 | R82: =nerr(costs_OPS/List01_costs_OPS)*100 -> 0
N83: Добавить товар/услугу
J84: Добавить способ
G85: Добавить поставщика
F86: 2 | G86: Расходы на услуги производственного характера, выполняемые по договорам с организациями на проведение регламентных работ в рамках технологического процесса. Из них товары и услуги, приобретенные у организаций, сумма оплаты услуг которых превышает 20% суммы расходов по статье: | Q86: =SUMIF(T87:T92,"i",Q87:Q92) -> 0 | S86: Указывается сумма стоимости приобретения товаров и услуг у организаций, сумма оплаты услуг которых превышает 20% суммы расходов на услуги производственного характера | T86: i | U86: 2 | V86: =INDEX(List01_flag_index_2,1,MATCH(A78,List01_NumberColumns,0)) -> 
F87: 0
F88: 2.1 | I88: 1 | J88: Итого по поставщику, в том числе | K88: х | L88: х | N88: х | O88: х | P88: х | Q88: =SUM(Q89:Q91) -> 0 | R88: =nerr(Q88/List01_costs_OPS)*100 -> 0 | S88: Указывается информация отдельно по организациям, сумма оплаты услуг которых превышает 20% суммы расходов на услуги производственного характера. Способ приобретения определяется из перечня: Торги/аукционы; Прямые договора без торгов; Прочее В случае наличия нескольких поставщиков, договоров, товаров и (или) услуг информация по ним указывается в отдельных строках. | T88: i
I89: 1.1 | M89: 1 | R89: =nerr(costs_OPS/List01_costs_OPS)*100 -> 0
N90: Добавить товар/услугу
J91: Добавить способ
G92: Добавить поставщика

Sheet et_union_vert (hidden)

Sheet modList00 (hidden)

Sheet modList02 (hidden)

Sheet modList03 (hidden)

Sheet modList04 (hidden)

Sheet modList09 (hidden)

Sheet modHTTP (hidden)

Sheet modfrmRegion (hidden)

Sheet MR_LIST (hidden)

Sheet REESTR_VT (hidden)

Sheet REESTR_VED (hidden)
A1: ID_TARIFF_NAME | B1: VED_NAME
A2: 4189714 | B2: Водоотведение
A3: 4189713 | B3: Транспортировка
A4: 4189712 | B4: Подключение (технологическое присоединение) к централизованной системе водоотведения

Sheet modfrmReestrObj (hidden)

Sheet DataOrg (hidden)

Sheet modfrmReestr (hidden)

Sheet modUpdTemplMain (hidden)

Sheet REESTR_ORG (hidden)
A1: № | B1: REGION_ID | C1: REGION_NAME | D1: RST_ORG_ID | E1: ORG_NAME | F1: INN_NAME | G1: KPP_NAME | H1: ORG_START_DATE | I1: ORG_END_DATE
A2: 1 | B2: 2661 | C2: Иркутская область | D2: 26372374 | E2: АО "Ангарская нефтехимическая компания" | F2: 3801009466 | G2: 997250001 | H2: 11-08-1993 00:00:00 | J2: VO
A3: 2 | B3: 2661 | C3: Иркутская область | D3: 26372375 | E3: АО "Ангарский Электролизный Химический Комбинат" | F3: 3801098402 | G3: 380101001 | H3: 01-09-2008 00:00:00 | J3: VO
A4: 3 | B4: 2661 | C4: Иркутская область | D4: 30358154 | E4: АО "Главное управление жилищно-коммунального хозяйства" | F4: 5116000922 | G4: 381145001 | H4: 13-05-2009 00:00:00 | J4: VO
A5: 4 | B5: 2661 | C5: Иркутская область | D5: 26536587 | E5: АО "Группа "Илим" | F5: 7840346335 | G5: 380402001 | H5: 27-09-2006 00:00:00 | J5: VO
A6: 5 | B6: 2661 | C6: Иркутская область | D6: 26530833 | E6: АО "Группа "Илим" | F6: 7840346335 | G6: 381702001 | H6: 27-09-2006 00:00:00 | J6: VO
A7: 6 | B7: 2661 | C7: Иркутская область | D7: 30947840 | E7: АО "МАИРТА" | F7: 3811067770 | G7: 381101001 | H7: 30-05-2001 00:00:00 | J7: VO
A8: 7 | B8: 2661 | C8: Иркутская область | D8: 26380015 | E8: АО "Саянскхимпласт" | F8: 3814007314 | G8: 381401001 | H8: 13-10-1998 00:00:00 | J8: VO
A9: 8 | B9: 2661 | C9: Иркутская область | D9: 26505643 | E9: АО "Усолье-Сибирский химфармзавод" | F9: 3819012188 | G9: 385101001 | H9: 02-09-2002 00:00:00 | J9: VO
A10: 9 | B10: 2661 | C10: Иркутская область | D10: 31061738 | E10: Акционерное общество "Братский завод металлоконструкций" | F10: 3805100042 | G10: 380501001 | H10: 11-01-1993 00:00:00 | J10: VO
A11: 10 | B11: 2661 | C11: Иркутская область | D11: 30881825 | E11: Акционерное общество работников народное предприятие "Концессия-Илим" | F11: 3817047971 | G11: 381701001 | H11: 31-01-2017 00:00:00 | J11: VO
A12: 11 | B12: 2661 | C12: Иркутская область | D12: 26375610 | E12: Восточно-Сибирская дирекция по тепловодоснабжению - структурное подразделение центральной дирекции по тепловодоснабжению филиала ОАО "РЖД" | F12: 7708503727 | G12: 381045020 | H12: 23-09-2003 00:00:00 | J12: VO
A13: 12 | B13: 2661 | C13: Иркутская область | D13: 26372430 | E13: ЗАО "Санаторий Усть-Кут" | F13: 3818000870 | G13: 381801001 | J13: VO
A14: 13 | B14: 2661 | C14: Иркутская область | D14: 26535508 | E14: ИП Скрябин В.Г. | F14: 384300333790 | G14: отсутствует | H14: 08-12-2009 00:00:00 | J14: VO
A15: 14 | B15: 2661 | C15: Иркутская область | D15: 26381585 | E15: ИП Шаповалов В.Н. | F15: 850400333946 | G15: отсутствует | H15: 01-11-2007 00:00:00 | J15: VO
A16: 15 | B16: 2661 | C16: Иркутская область | D16: 31401664 | E16: КМП "Автодор" УКМО (ГП) | F16: 3818043560 | G16: 381801001 | H16: 07-12-2015 00:00:00 | J16: VO
A17: 16 | B17: 2661 | C17: Иркутская область | D17: 28086512 | E17: МП "Дирекция городской инфраструктуры" МО г. Братска | F17: 3804045543 | G17: 380401001 | H17: 09-06-2011 00:00:00 | J17: VO
A18: 17 | B18: 2661 | C18: Иркутская область | D18: 30383691 | E18: МП "ЖКХ 2015" | F18: 3817045068 | G18: 381701001 | H18: 17-07-2015 00:00:00 | J18: VO
A19: 18 | B19: 2661 | C19: Иркутская область | D19: 28445431 | E19: МУП " ЖКХ Калтук" | F19: 3847000561 | G19: 384701001 | H19: 17-04-2013 00:00:00 | J19: VO
A20: 19 | B20: 2661 | C20: Иркутская область | D20: 31252938 | E20: МУП "Вихоревский городской транспорт" | F20: 3805732122 | G20: 380501001 | H20: 15-12-2017 00:00:00 | J20: VO
A21: 20 | B21: 2661 | C21: Иркутская область | D21: 26372455 | E21: МУП "Водоканал" | F21: 3821005886 | G21: 382101001 | H21: 16-04-1994 00:00:00 | J21: VO
A22: 21 | B22: 2661 | C22: Иркутская область | D22: 26372399 | E22: МУП "Водоканал" г.Иркутска | F22: 3807000276 | G22: 381150001 | H22: 27-03-1992 00:00:00 | J22: VO
A23: 22 | B23: 2661 | C23: Иркутская область | D23: 26372410 | E23: МУП "Водоканал-Сервис" | F23: 3814007427 | G23: 381401001 | J23: VO
A24: 23 | B24: 2661 | C24: Иркутская область | D24: 28969215 | E24: МУП "ЖКХ Балахнинский" | F24: 3802016787 | G24: 380201001 | H24: 21-01-2015 00:00:00 | J24: VO
A25: 24 | B25: 2661 | C25: Иркутская область | D25: 28445420 | E25: МУП "ЖКХ Турма" | F25: 3847000593 | G25: 384701001 | H25: 21-05-2013 00:00:00 | J25: VO
A26: 25 | B26: 2661 | C26: Иркутская область | D26: 31222886 | E26: МУП "Жилищно-коммунальное хозяйство Ручейское" | F26: 3818048590 | G26: 381801001 | H26: 06-03-2018 00:00:00 | J26: VO
A27: 26 | B27: 2661 | C27: Иркутская область | D27: 28980193 | E27: МУП "ЖилкомСервис" | F27: 3802016949 | G27: 380201001 | H27: 30-01-2015 00:00:00 | J27: VO
A28: 27 | B28: 2661 | C28: Иркутская область | D28: 28827705 | E28: МУП "Жилфонд" | F28: 3802013722 | G28: 380201001 | H28: 21-05-2014 00:00:00 | J28: VO
A29: 28 | B29: 2661 | C29: Иркутская область | D29: 26448306 | E29: МУП "КОС БМО" | F29: 3837004905 | G29: 383701001 | H29: 19-03-2008 00:00:00 | J29: VO
A30: 29 | B30: 2661 | C30: Иркутская область | D30: 26513356 | E30: МУП "Карахунское ЖКХ" | F30: 3823032405 | G30: 382301001 | H30: 20-02-2009 00:00:00 | J30: VO
A31: 30 | B31: 2661 | C31: Иркутская область | D31: 26372473 | E31: МУП "Озернинское ЖКХ" | F31: 3823020255 | G31: 382301001 | J31: VO
A32: 31 | B32: 2661 | C32: Иркутская область | D32: 31253256 | E32: МУП "Покосное" | F32: 3805732958 | G32: 380501001 | H32: 17-07-2018 00:00:00 | J32: VO
A33: 32 | B33: 2661 | C33: Иркутская область | D33: 30858357 | E33: МУП "Прометей" | F33: 3847000924 | G33: 384701001 | H33: 14-05-2014 00:00:00 | J33: VO
A34: 33 | B34: 2661 | C34: Иркутская область | D34: 31041730 | E34: МУП "Районное коммунальное управление" | F34: 3805731337 | G34: 380501001 | H34: 22-06-2017 00:00:00 | J34: VO
A35: 34 | B35: 2661 | C35: Иркутская область | D35: 31399441 | E35: МУП "Районные коммунальные системы" | F35: 3805734289 | G35: 380501001 | H35: 30-07-2019 00:00:00 | J35: VO
A36: 35 | B36: 2661 | C36: Иркутская область | D36: 31477661 | E36: МУП "Сервисный центр" | F36: 3819019200 | G36: 385101001 | J36: VO
A37: 36 | B37: 2661 | C37: Иркутская область | D37: 26493505 | E37: МУП "ТВС п.Перевоз" | F37: 3802011958 | G37: 380201001 | H37: 02-10-2008 00:00:00 | J37: VO
A38: 37 | B38: 2661 | C38: Иркутская область | D38: 26356490 | E38: МУП "Тепловодоканал" | F38: 3802009268 | G38: 380201001 | H38: 13-12-2002 00:00:00 | J38: VO
A39: 38 | B39: 2661 | C39: Иркутская область | D39: 30360689 | E39: МУП "Тепловодоцентраль" | F39: 3802017156 | G39: 380201001 | H39: 28-04-2015 00:00:00 | J39: VO
A40: 39 | B40: 2661 | C40: Иркутская область | D40: 26381583 | E40: МУП "Теплотехник" | F40: 8501006590 | G40: 850101001 | J40: VO
A41: 40 | B41: 2661 | C41: Иркутская область | D41: 26380050 | E41: МУП "Транзит-Аква" | F41: 3851006904 | G41: 385101001 | H41: 27-08-2012 00:00:00 | J41: VO
A42: 41 | B42: 2661 | C42: Иркутская область | D42: 30477728 | E42: МУП "Удачный" | F42: 3811042134 | G42: 381101001 | H42: 15-06-2015 00:00:00 | J42: VO
A43: 42 | B43: 2661 | C43: Иркутская область | D43: 30390730 | E43: МУП "ЭЛЬБРУС" | F43: 3851993288 | G43: 385101001 | H43: 19-03-2014 00:00:00 | J43: VO
A44: 43 | B44: 2661 | C44: Иркутская область | D44: 31225744 | E44: МУП "ЯЖКХ" | F44: 3805733197 | G44: 380501001 | H44: 11-09-2018 00:00:00 | J44: VO
A45: 44 | B45: 2661 | C45: Иркутская область | D45: 26372373 | E45: МУП Ангарского городского округа "Ангарский Водоканал" | F45: 3801006828 | G45: 380101001 | H45: 12-05-1992 00:00:00 | J45: VO
A46: 45 | B46: 2661 | C46: Иркутская область | D46: 31280176 | E46: МУП Управляющая компания "Игирма" | F46: 3805733180 | G46: 380501001 | H46: 12-09-2018 00:00:00 | J46: VO
A47: 46 | B47: 2661 | C47: Иркутская область | D47: 28072605 | E47: МУСХП "Центральное" | F47: 3816006186 | G47: 381601001 | J47: VO
A48: 47 | B48: 2661 | C48: Иркутская область | D48: 30478884 | E48: Муниципально унитарное предприятие "Управляющая компания Спектр" | F48: 3805728694 | G48: 380501001 | J48: VO
A49: 48 | B49: 2661 | C49: Иркутская область | D49: 28869387 | E49: Муниципальное предприятие "Жилищно-коммунальное хозяйство Невон" Невонского муниципального предприятия | F49: 3817044233 | G49: 381701001 | H49: 23-05-2014 00:00:00 | J49: VO
A50: 49 | B50: 2661 | C50: Иркутская область | D50: 29646328 | E50: Муниципальное предприятие "Остров" | F50: 3818032110 | G50: 381801001 | J50: VO
A51: 50 | B51: 2661 | C51: Иркутская область | D51: 28861144 | E51: Муниципальное унитарное предприятие"Жилищно-коммунальноехозяйство Спектр" Подьеланского муниципального образования | F51: 3817998342 | G51: 381701001 | J51: VO
A52: 51 | B52: 2661 | C52: Иркутская область | D52: 26505381 | E52: ОАО "Байкальский целлюлозно-бумажный комбинат" | F52: 3837049102 | G52: 383701001 | H52: 09-12-1992 00:00:00 | J52: VO
A53: 52 | B53: 2661 | C53: Иркутская область | D53: 26640106 | E53: ОАО "Облжилкомхоз" | F53: 3808133575 | G53: 384901001 | H53: 09-02-2006 00:00:00 | J53: VO
A54: 53 | B54: 2661 | C54: Иркутская область | D54: 28504250 | E54: ОАО "РЖД" (Восточно-Сибирская дирекция по тепловодоснабжению) | F54: 7708503727 | G54: 381045021 | H54: 23-09-2003 00:00:00 | J54: VO
A55: 54 | B55: 2661 | C55: Иркутская область | D55: 26372385 | E55: ОАО "Санаторий Братское взморье" | F55: 3805100973 | G55: 380501001 | H55: 28-08-1993 00:00:00 | J55: VO
A56: 55 | B56: 2661 | C56: Иркутская область | D56: 26356630 | E56: ОГБУСО "Заларинский специальный дом - интернат для престарелых и инвалидов" | F56: 3825001498 | G56: 382501001 | H56: 01-10-2010 00:00:00 | J56: VO
A57: 56 | B57: 2661 | C57: Иркутская область | D57: 27584857 | E57: ООО " ЮртКомХоз" | F57: 3815011391 | G57: 381501001 | J57: VO
A58: 57 | B58: 2661 | C58: Иркутская область | D58: 30365354 | E58: ООО "Западный филиал" | F58: 3816022124 | G58: 381601001 | H58: 01-07-2015 00:00:00 | J58: VO
A59: 58 | B59: 2661 | C59: Иркутская область | D59: 31290864 | E59: ООО "АКВА плюс" | F59: 3805733616 | G59: 380501001 | H59: 13-02-2019 00:00:00 | J59: VO
A60: 59 | B60: 2661 | C60: Иркутская область | D60: 31390088 | E60: ООО "АКВА-СЕРВИС" | F60: 3816029761 | G60: 381601001 | H60: 16-04-2018 00:00:00 | J60: VO
A61: 60 | B61: 2661 | C61: Иркутская область | D61: 28932345 | E61: ООО "Авангард" | F61: 3851003692 | G61: 385101001 | H61: 29-06-2011 00:00:00 | I61: 30-04-2020 00:00:00 | J61: VO
A62: 61 | B62: 2661 | C62: Иркутская область | D62: 26765909 | E62: ООО "АкваСервис" | F62: 3851001198 | G62: 385101001 | H62: 20-08-2010 00:00:00 | J62: VO
A63: 62 | B63: 2661 | C63: Иркутская область | D63: 30866409 | E63: ООО "АкваСервис" | F63: 3851017744 | G63: 385101001 | H63: 29-06-2016 00:00:00 | J63: VO
A64: 63 | B64: 2661 | C64: Иркутская область | D64: 28147772 | E64: ООО "Акватранс" | F64: 3848006615 | G64: 384801001 | H64: 21-11-2012 00:00:00 | J64: VO
A65: 64 | B65: 2661 | C65: Иркутская область | D65: 31383436 | E65: ООО "Акватрейд" | F65: 3818049315 | G65: 381801001 | H65: 02-07-2019 00:00:00 | J65: VO
A66: 65 | B66: 2661 | C66: Иркутская область | D66: 26510575 | E66: ООО "АктивЭнерго" | F66: 3808159809 | G66: 384901001 | H66: 23-11-2007 00:00:00 | J66: VO
A67: 66 | B67: 2661 | C67: Иркутская область | D67: 27544464 | E67: ООО "БЛАГО" | F67: 3818029492 | G67: 381801001 | H67: 26-09-2011 00:00:00 | J67: VO
A68: 67 | B68: 2661 | C68: Иркутская область | D68: 31417272 | E68: ООО "Байкальская энергетическая компания" | F68: 3808229774 | G68: 380801001 | H68: 27-05-2013 00:00:00 | J68: VO
A69: 68 | B69: 2661 | C69: Иркутская область | D69: 27570092 | E69: ООО "Берёзовый" | F69: 3851004456 | G69: 385101001 | H69: 20-10-2011 00:00:00 | J69: VO
A70: 69 | B70: 2661 | C70: Иркутская область | D70: 30978661 | E70: ООО "БиоТеплоЭнерго" | F70: 3808195606 | G70: 380801001 | H70: 28-06-2016 00:00:00 | J70: VO
A71: 70 | B71: 2661 | C71: Иркутская область | D71: 26380023 | E71: ООО "Биоочистка" | F71: 3815011881 | G71: 381501001 | J71: VO
A72: 71 | B72: 2661 | C72: Иркутская область | D72: 31157914 | E72: ООО "ВОДОКАНАЛ" | F72: 3818046963 | G72: 381801001 | H72: 25-03-2016 00:00:00 | J72: VO
A73: 72 | B73: 2661 | C73: Иркутская область | D73: 28441350 | E73: ООО "Вектор" | F73: 3816015695 | G73: 381601001 | H73: 20-05-2013 00:00:00 | J73: VO
A74: 73 | B74: 2661 | C74: Иркутская область | D74: 31345984 | E74: ООО "Вода плюс" | F74: 3817049295 | G74: 381701001 | H74: 05-07-2018 00:00:00 | J74: VO
A75: 74 | B75: 2661 | C75: Иркутская область | D75: 30375237 | E75: ООО "Водоканал" | F75: 3816022438 | G75: 381601001 | H75: 03-09-2015 00:00:00 | J75: VO
A76: 75 | B76: 2661 | C76: Иркутская область | D76: 31077969 | E76: ООО "Грандсервис" | F76: 3805728447 | G76: 380501001 | H76: 27-08-2015 00:00:00 | J76: VO
A77: 76 | B77: 2661 | C77: Иркутская область | D77: 30812025 | E77: ООО "ЖКХ" | F77: 3849057531 | G77: 384901001 | J77: VO
A78: 77 | B78: 2661 | C78: Иркутская область | D78: 31090913 | E78: ООО "ЖКХ" | F78: 3851019533 | G78: 385101001 | H78: 27-04-2017 00:00:00 | J78: VO
A79: 78 | B79: 2661 | C79: Иркутская область | D79: 31255094 | E79: ООО "ЖКХ-2018" | F79: 3817049538 | G79: 381701001 | H79: 24-09-2018 00:00:00 | J79: VO
A80: 79 | B80: 2661 | C80: Иркутская область | D80: 27439797 | E80: ООО "ЖЭУ" Химки" | F80: 3834011904 | G80: 383401001 | H80: 02-06-2006 00:00:00 | J80: VO
A81: 80 | B81: 2661 | C81: Иркутская область | D81: 30877129 | E81: ООО "Жилкомсервис" | F81: 3808197297 | G81: 380801001 | H81: 02-11-2016 00:00:00 | J81: VO
A82: 81 | B82: 2661 | C82: Иркутская область | D82: 30802449 | E82: ООО "ИСТОК" | F82: 3805729000 | G82: 380501001 | H82: 29-12-2015 00:00:00 | J82: VO
A83: 82 | B83: 2661 | C83: Иркутская область | D83: 30375249 | E83: ООО "Игнино" | F83: 3814019550 | G83: 381401001 | H83: 28-11-2014 00:00:00 | J83: VO
A84: 83 | B84: 2661 | C84: Иркутская область | D84: 30858060 | E84: ООО "Интехцентр" | F84: 3816997900 | G84: 381601001 | J84: VO
A85: 84 | B85: 2661 | C85: Иркутская область | D85: 28427676 | E85: ООО "Иркутские Коммунальные Системы" | F85: 3808219007 | G85: 381201001 | H85: 23-05-2011 00:00:00 | J85: VO
A86: 85 | B86: 2661 | C86: Иркутская область | D86: 27505941 | E86: ООО "Искра" | F86: 3819021591 | G86: 385101001 | H86: 04-12-2008 00:00:00 | I86: 20-05-2020 00:00:00 | J86: VO
A87: 86 | B87: 2661 | C87: Иркутская область | D87: 27113644 | E87: ООО "КАНВОД" | F87: 3808053746 | G87: 382701001 | J87: VO
A88: 87 | B88: 2661 | C88: Иркутская область | D88: 30934439 | E88: ООО "КОНСТЭНЕРГОТРАНС" | F88: 3817047467 | G88: 381701001 | H88: 22-08-2016 00:00:00 | J88: VO
A89: 88 | B89: 2661 | C89: Иркутская область | D89: 30378582 | E89: ООО "КОС" | F89: 3851994436 | G89: 385101001 | H89: 06-10-2014 00:00:00 | I89: 05-11-2020 00:00:00 | J89: VO
A90: 89 | B90: 2661 | C90: Иркутская область | D90: 30857962 | E90: ООО "КТ-РЕСУРС" | F90: 3808195620 | G90: 380801001 | J90: VO
A91: 90 | B91: 2661 | C91: Иркутская область | D91: 28966207 | E91: ООО "КУК ЖКХ-2" | F91: 3811170143 | G91: 381101001 | H91: 31-07-2013 00:00:00 | J91: VO
A92: 91 | B92: 2661 | C92: Иркутская область | D92: 31397494 | E92: ООО "Кедр" | F92: 3851003903 | G92: 385101001 | H92: 02-08-2011 00:00:00 | J92: VO
A93: 92 | B93: 2661 | C93: Иркутская область | D93: 27666486 | E93: ООО "Кобляковское" | F93: 3823034064 | G93: 382301001 | H93: 02-08-2011 00:00:00 | J93: VO
A94: 93 | B94: 2661 | C94: Иркутская область | D94: 27570144 | E94: ООО "КомСервис" | F94: 3834015480 | G94: 383401001 | H94: 21-04-2011 00:00:00 | I94: 22-01-2021 00:00:00 | J94: VO
A95: 94 | B95: 2661 | C95: Иркутская область | D95: 26755699 | E95: ООО "Коммунальные услуги" | F95: 3819022348 | G95: 385101001 | H95: 28-04-2009 00:00:00 | J95: VO
A96: 95 | B96: 2661 | C96: Иркутская область | D96: 26356522 | E96: ООО "Компания Востсибуголь" "Разрез "Тулунуголь" | F96: 3808069986 | G96: 381643001 | H96: 24-12-2009 00:00:00 | J96: VO
A97: 96 | B97: 2661 | C97: Иркутская область | D97: 31206546 | E97: ООО "Комплекс коммунальных систем" | F97: 3810075070 | G97: 381001001 | H97: 27-04-2018 00:00:00 | J97: VO
A98: 97 | B98: 2661 | C98: Иркутская область | D98: 26647667 | E98: ООО "МАЯК" | F98: 3815015660 | G98: 381501001 | H98: 25-05-2010 00:00:00 | J98: VO
A99: 98 | B99: 2661 | C99: Иркутская область | D99: 30409908 | E99: ООО "Межмуниципальное предприятие коммунального комплекса" | F99: 3802017195 | G99: 380201719 | H99: 24-06-2015 00:00:00 | J99: VO
A100: 99 | B100: 2661 | C100: Иркутская область | D100: 27751980 | E100: ООО "Надежда" | F100: 3823034177 | G100: 382301001 | H100: 05-09-2011 00:00:00 | I100: 16-07-2020 00:00:00 | J100: VO
A101: 100 | B101: 2661 | C101: Иркутская область | D101: 27871088 | E101: ООО "Наш дом" | F101: 3834015521 | G101: 383401001 | H101: 26-01-2011 00:00:00 | J101: VO
A102: 101 | B102: 2661 | C102: Иркутская область | D102: 28504015 | E102: ООО "Нижнеудинское коммунальное управление" | F102: 3816016378 | G102: 381601001 | H102: 14-11-2013 00:00:00 | J102: VO
A103: 102 | B103: 2661 | C103: Иркутская область | D103: 28005324 | E103: ООО "НордТрейд" | F103: 3818028379 | G103: 381801001 | H103: 16-11-2010 00:00:00 | J103: VO
A104: 103 | B104: 2661 | C104: Иркутская область | D104: 31330016 | E104: ООО "ОВУК" | F104: 3847000762 | G104: 384701001 | H104: 04-12-2013 00:00:00 | J104: VO
A105: 104 | B105: 2661 | C105: Иркутская область | D105: 28453158 | E105: ООО "ПК БРАСС" | F105: 7813376549 | G105: 385101001 | H105: 23-04-2007 00:00:00 | J105: VO
A106: 105 | B106: 2661 | C106: Иркутская область | D106: 31464006 | E106: ООО "Парабель-2020" | F106: 3817050396 | G106: 381701001 | H106: 30-01-2020 00:00:00 | J106: VO
A107: 106 | B107: 2661 | C107: Иркутская область | D107: 26372433 | E107: ООО "Прогресс-сервис" | F107: 3818026692 | G107: 381801001 | H107: 16-10-2009 00:00:00 | J107: VO
A108: 107 | B108: 2661 | C108: Иркутская область | D108: 31064806 | E108: ООО "РГК" | F108: 3805731979 | G108: 380501001 | H108: 23-11-2017 00:00:00 | J108: VO
A109: 108 | B109: 2661 | C109: Иркутская область | D109: 31423809 | E109: ООО "РОСТ" | F109: 3817050036 | G109: 381701001 | H109: 03-06-2019 00:00:00 | J109: VO
A110: 109 | B110: 2661 | C110: Иркутская область | D110: 27101530 | E110: ООО "РУК ЖКХ" | F110: 3834015306 | G110: 383401001 | H110: 29-03-2011 00:00:00 | J110: VO
A111: 110 | B111: 2661 | C111: Иркутская область | D111: 31023716 | E111: ООО "Ресурс" | F111: 3817048196 | G111: 381701001 | H111: 21-04-2017 00:00:00 | J111: VO
A112: 111 | B112: 2661 | C112: Иркутская область | D112: 30845338 | E112: ООО "СТЭК" | F112: 3808195596 | G112: 380801001 | H112: 28-06-2016 00:00:00 | J112: VO
A113: 112 | B113: 2661 | C113: Иркутская область | D113: 30359920 | E113: ООО "Сервис" | F113: 3808189673 | G113: 380801001 | H113: 21-04-2015 00:00:00 | J113: VO
A114: 113 | B114: 2661 | C114: Иркутская область | D114: 26372405 | E114: ООО "Сетевая компания "Иркут" | F114: 3810035487 | G114: 381001001 | H114: 28-05-2004 00:00:00 | J114: VO
A115: 114 | B115: 2661 | C115: Иркутская область | D115: 27573731 | E115: ООО "СибТеплоСервис" | F115: 3814016950 | G115: 381401001 | H115: 14-01-2011 00:00:00 | J115: VO
A116: 115 | B116: 2661 | C116: Иркутская область | D116: 31335326 | E116: ООО "Сибирская строительная компания" | F116: 3811113473 | G116: 381101001 | H116: 30-08-2007 00:00:00 | J116: VO
A117: 116 | B117: 2661 | C117: Иркутская область | D117: 31023171 | E117: ООО "Система ВодоОтведения" | F117: 3851020899 | G117: 385101001 | H117: 20-11-2017 00:00:00 | J117: VO
A118: 117 | B118: 2661 | C118: Иркутская область | D118: 30354079 | E118: ООО "Слюдянское" | F118: 3810058290 | G118: 381001001 | H118: 26-05-2015 00:00:00 | J118: VO
A119: 118 | B119: 2661 | C119: Иркутская область | D119: 28454139 | E119: ООО "СпецЭнергоРесурс" | F119: 3817042772 | G119: 381701001 | H119: 05-07-2013 00:00:00 | I119: 13-11-2020 00:00:00 | J119: VO
A120: 119 | B120: 2661 | C120: Иркутская область | D120: 31349860 | E120: ООО "Стандарткомстрой" | F120: 3808130454 | G120: 384901001 | H120: 13-12-2005 00:00:00 | J120: VO
A121: 120 | B121: 2661 | C121: Иркутская область | D121: 31189292 | E121: ООО "Сток-Сервис" | F121: 3814035939 | G121: 381401001 | H121: 05-02-2018 00:00:00 | J121: VO
A122: 121 | B122: 2661 | C122: Иркутская область | D122: 26552069 | E122: ООО "Стоки" | F122: 3818017610 | G122: 381801001 | H122: 08-10-2004 00:00:00 | J122: VO
A123: 122 | B123: 2661 | C123: Иркутская область | D123: 30399432 | E123: ООО "Стоки" | F123: 3848006686 | G123: 384801001 | H123: 05-12-2012 00:00:00 | J123: VO
A124: 123 | B124: 2661 | C124: Иркутская область | D124: 28903352 | E124: ООО "ТЕПЛОСЕРВИС" | F124: 3834016606 | G124: 383401001 | H124: 25-06-2014 00:00:00 | J124: VO
A125: 124 | B125: 2661 | C125: Иркутская область | D125: 28966192 | E125: ООО "ТЕХНОКОМ" | F125: 3811181360 | G125: 381101001 | H125: 22-07-2014 00:00:00 | J125: VO
A126: 125 | B126: 2661 | C126: Иркутская область | D126: 30867640 | E126: ООО "ТЭТК" | F126: 3851017487 | G126: 385101001 | H126: 04-05-2016 00:00:00 | J126: VO
A127: 126 | B127: 2661 | C127: Иркутская область | D127: 30933991 | E127: ООО "ТеплоМиг" | F127: 3817047837 | G127: 381701001 | H127: 12-12-2016 00:00:00 | J127: VO
A128: 127 | B128: 2661 | C128: Иркутская область | D128: 31100379 | E128: ООО "ТеплоРесурс" | F128: 3818046970 | G128: 381801001 | H128: 25-03-2016 00:00:00 | J128: VO
A129: 128 | B129: 2661 | C129: Иркутская область | D129: 30985847 | E129: ООО "Тепловодоканал" | F129: 3818048128 | G129: 381801001 | J129: VO
A130: 129 | B130: 2661 | C130: Иркутская область | D130: 30382397 | E130: ООО "Тепловодосбыт" | F130: 3851999346 | G130: 385101001 | H130: 24-05-2013 00:00:00 | J130: VO
A131: 130 | B131: 2661 | C131: Иркутская область | D131: 31237450 | E131: ООО "Тепловодснаб" | F131: 3818048287 | G131: 381801001 | H131: 21-09-2017 00:00:00 | J131: VO
A132: 131 | B132: 2661 | C132: Иркутская область | D132: 30857845 | E132: ООО "Теплоисток" | F132: 3805729899 | G132: 380501001 | J132: VO
A133: 132 | B133: 2661 | C133: Иркутская область | D133: 26353587 | E133: ООО "Теплоэнергосервис" | F133: 3820012880 | G133: 382001001 | H133: 21-01-2008 00:00:00 | J133: VO
A134: 133 | B134: 2661 | C134: Иркутская область | D134: 28871736 | E134: ООО "ТрансТехРесурс" | F134: 3816014476 | G134: 381601001 | H134: 05-10-2012 00:00:00 | J134: VO
A135: 134 | B135: 2661 | C135: Иркутская область | D135: 31030680 | E135: ООО "Тубинский" | F135: 3817048573 | G135: 381701001 | H135: 09-10-2017 00:00:00 | J135: VO
A136: 135 | B136: 2661 | C136: Иркутская область | D136: 27522005 | E136: ООО "Тыретские инженерные сети" | F136: 3814016968 | G136: 381401001 | H136: 15-06-2011 00:00:00 | J136: VO
A137: 136 | B137: 2661 | C137: Иркутская область | D137: 26755257 | E137: ООО "УК " Энергия" | F137: 3831004169 | G137: 383101001 | H137: 29-12-2005 00:00:00 | J137: VO
A138: 137 | B138: 2661 | C138: Иркутская область | D138: 30948581 | E138: ООО "УК "Макском" | F138: 3812090927 | G138: 381201001 | H138: 22-08-2006 00:00:00 | J138: VO
A139: 138 | B139: 2661 | C139: Иркутская область | D139: 26372436 | E139: ООО "УК Водоканал-Сервис" | F139: 3818018814 | G139: 381801001 | H139: 23-09-2005 00:00:00 | J139: VO
A140: 139 | B140: 2661 | C140: Иркутская область | D140: 27438168 | E140: ООО "УК ЖКХ Новоилимск" | F140: 3834015458 | G140: 383401001 | J140: VO
A141: 140 | B141: 2661 | C141: Иркутская область | D141: 31225695 | E141: ООО "УКС" | F141: 3810062522 | G141: 381001001 | H141: 18-02-2016 00:00:00 | J141: VO
A142: 141 | B142: 2661 | C142: Иркутская область | D142: 30904230 | E142: ООО "Управление жилищно-коммунальными системами" | F142: 3810064110 | G142: 381001001 | H142: 13-05-2016 00:00:00 | J142: VO
A143: 142 | B143: 2661 | C143: Иркутская область | D143: 30353196 | E143: ООО "Управление жилищно-коммунальными системами" | F143: 3810341244 | G143: 381001001 | H143: 03-12-2014 00:00:00 | J143: VO
A144: 143 | B144: 2661 | C144: Иркутская область | D144: 31183602 | E144: ООО "Управляющая компания Северо-Западная" | F144: 3811432462 | G144: 381101001 | H144: 26-02-2016 00:00:00 | J144: VO
A145: 144 | B145: 2661 | C145: Иркутская область | D145: 26505645 | E145: ООО "Усольехимпром" | F145: 3819013576 | G145: 381950001 | J145: VO
A146: 145 | B146: 2661 | C146: Иркутская область | D146: 26356477 | E146: ООО "Усть-Кутские тепловые сети и котельные" | F146: 3818025152 | G146: 381801001 | H146: 30-12-2008 00:00:00 | J146: VO
A147: 146 | B147: 2661 | C147: Иркутская область | D147: 26380046 | E147: ООО "Утес" | F147: 3851006005 | G147: 385101001 | H147: 19-04-2012 00:00:00 | J147: VO
A148: 147 | B148: 2661 | C148: Иркутская область | D148: 26555200 | E148: ООО "Ушаковская" | F148: 3827026265 | G148: 382704001 | H148: 24-10-2007 00:00:00 | J148: VO
A149: 148 | B149: 2661 | C149: Иркутская область | D149: 31235244 | E149: ООО "Факел" | F149: 3851020017 | G149: 385101001 | H149: 18-07-2017 00:00:00 | J149: VO
A150: 149 | B150: 2661 | C150: Иркутская область | D150: 30907259 | E150: ООО "ХОРС" | F150: 3804999116 | G150: 380401001 | H150: 20-04-2017 00:00:00 | J150: VO
A151: 150 | B151: 2661 | C151: Иркутская область | D151: 26648801 | E151: ООО "Центральная котельная" | F151: 3808092150 | G151: 381601001 | H151: 21-10-2010 00:00:00 | J151: VO
A152: 151 | B152: 2661 | C152: Иркутская область | D152: 30357368 | E152: ООО "Черемховский водоканал" | F152: 3851994299 | G152: 385101001 | H152: 08-09-2014 00:00:00 | J152: VO
A153: 152 | B153: 2661 | C153: Иркутская область | D153: 26372414 | E153: ООО "Энергопром" | F153: 3815012645 | G153: 381501001 | H153: 26-09-2007 00:00:00 | J153: VO
A154: 153 | B154: 2661 | C154: Иркутская область | D154: 28461970 | E154: ООО "Энергосфера-Иркутск" | F154: 3818031413 | G154: 381801001 | H154: 10-06-2013 00:00:00 | J154: VO
A155: 154 | B155: 2661 | C155: Иркутская область | D155: 28829498 | E155: ООО "Южнобайкальское" | F155: 3848006527 | G155: 384801001 | J155: VO
A156: 155 | B156: 2661 | C156: Иркутская область | D156: 30381073 | E156: ООО «Вихоревское управление" | F156: 3805728126 | G156: 380501001 | H156: 26-06-2015 00:00:00 | I156: 26-11-2020 00:00:00 | J156: VO
A157: 156 | B157: 2661 | C157: Иркутская область | D157: 30380999 | E157: ООО «УСОЛЬСКОЕ КОММУНАЛЬНОЕ УПРАВЛЕНИЕ» | F157: 3851992774 | G157: 385101001 | H157: 23-12-2013 00:00:00 | J157: VO
A158: 157 | B158: 2661 | C158: Иркутская область | D158: 28007174 | E158: ООО Благо | F158: 3818028386 | G158: 381801001 | J158: VO
A159: 158 | B159: 2661 | C159: Иркутская область | D159: 28261220 | E159: ООО ЖКХ "Южное" | F159: 3816014571 | G159: 381601001 | H159: 30-10-2012 00:00:00 | J159: VO
A160: 159 | B160: 2661 | C160: Иркутская область | D160: 30857841 | E160: ООО СК "Ресурс Транзит" | F160: 3811434389 | G160: 381101001 | H160: 29-08-2016 00:00:00 | J160: VO
A161: 160 | B161: 2661 | C161: Иркутская область | D161: 28503958 | E161: ООО УК "Водоканал" | F161: 3851997853 | G161: 385101001 | H161: 25-10-2013 00:00:00 | J161: VO
A162: 161 | B162: 2661 | C162: Иркутская область | D162: 26380012 | E162: ООО УК "СОЛ" | F162: 3808172790 | G162: 380801001 | J162: VO
A163: 162 | B163: 2661 | C163: Иркутская область | D163: 26372435 | E163: ООО УК"Бирюса" | F163: 3818018652 | G163: 381801001 | J163: VO
A164: 163 | B164: 2661 | C164: Иркутская область | D164: 29647526 | E164: ООО Управляющая компания "Ния" | F164: 3818042486 | G164: 381801001 | H164: 15-01-2015 00:00:00 | J164: VO
A165: 164 | B165: 2661 | C165: Иркутская область | D165: 30438691 | E165: Областное государственное автономное учреждение социального обслуживания "Марковский геронтологический центр" | F165: 3827000771 | G165: 382701001 | J165: VO
A166: 165 | B166: 2661 | C166: Иркутская область | D166: 30374996 | E166: Общество с ограниченной ответственностью "ВОДОКАНАЛ КИЕВСКИЙ" | F166: 3805997009 | G166: 380501001 | I166: 02-11-2020 00:00:00 | J166: VO
A167: 166 | B167: 2661 | C167: Иркутская область | D167: 31387011 | E167: Общество с ограниченной ответственностью "Вик" | F167: 3851024043 | G167: 385101001 | H167: 08-08-2019 00:00:00 | J167: VO
A168: 167 | B168: 2661 | C168: Иркутская область | D168: 30408096 | E168: Общество с ограниченной ответственностью "Сетевая компания - Вода" | F168: 3810325210 | G168: 381001001 | H168: 04-05-2012 00:00:00 | J168: VO
A169: 168 | B169: 2661 | C169: Иркутская область | D169: 26781007 | E169: ПАО "Иркутскэнерго" | F169: 3800000220 | G169: 997450001 | J169: VO
A170: 169 | B170: 2661 | C170: Иркутская область | D170: 26505310 | E170: ПАО "РУСАЛ Братский алюминиевый завод" | F170: 3803100054 | G170: 997550001 | H170: 26-11-1992 00:00:00 | J170: VO
A171: 170 | B171: 2661 | C171: Иркутская область | D171: 27506927 | E171: Усть-Ордынское МУП "Каскад" | F171: 8506007453 | G171: 850601001 | H171: 14-02-2011 00:00:00 | J171: VO
A172: 171 | B172: 2661 | C172: Иркутская область | D172: 30946960 | E172: ФГБУ "ЦЖКУ" Минобороны России | F172: 7729314745 | G172: 381145002 | H172: 21-12-2002 00:00:00 | J172: VO
A173: 172 | B173: 2661 | C173: Иркутская область | D173: 26375629 | E173: ФГУП РТРС "Иркутский ОРТПЦ" | F173: 7717127211 | G173: 380802002 | H173: 23-11-2001 00:00:00 | J173: VO
A174: 173 | B174: 2661 | C174: Иркутская область | D174: 27113703 | E174: Филиал "Иркутское РНУ" ООО "Транснефть - Восток" | F174: 3801079671 | G174: 380102001 | J174: VO
A175: 174 | B175: 2661 | C175: Иркутская область | D175: 30914574 | E175: Филиал ФГБУ "ЦЖКУ" МИНОБОРОНЫ РОССИИ (по ЦВО) | F175: 7729314745 | G175: 667043001 | J175: VO

Sheet modClassifierValidate (hidden)

Sheet modHyp (hidden)

Sheet modfrmDateChoose (hidden)

Sheet modComm (hidden)

Sheet modThisWorkbook (hidden)

Sheet REESTR_MO (hidden)
A1: № | B1: МР | C1: МО | D1: МО_ОКТМО
A2: 1 | B2: Аларский муниципальный район | C2: Аларский муниципальный район | D2: 25605000
A3: 2 | B3: Аларский муниципальный район | C3: Аларь | D3: 25605402
A4: 3 | B4: Аларский муниципальный район | C4: Александровск | D4: 25605404
A5: 4 | B5: Аларский муниципальный район | C5: Аляты | D5: 25605407
A6: 5 | B6: Аларский муниципальный район | C6: Ангарское | D6: 25605410
A7: 6 | B7: Аларский муниципальный район | C7: Бахтай | D7: 25605413
A8: 7 | B8: Аларский муниципальный район | C8: Егоровск | D8: 25605416
A9: 8 | B9: Аларский муниципальный район | C9: Забитуй | D9: 25605414
A10: 9 | B10: Аларский муниципальный район | C10: Зоны | D10: 25605419
A11: 10 | B11: Аларский муниципальный район | C11: Иваническ | D11: 25605422
A12: 11 | B12: Аларский муниципальный район | C12: Куйта | D12: 25605425
A13: 12 | B13: Аларский муниципальный район | C13: Кутулик | D13: 25605426
A14: 13 | B14: Аларский муниципальный район | C14: Маниловск | D14: 25605427
A15: 14 | B15: Аларский муниципальный район | C15: Могоенок | D15: 25605428
A16: 15 | B16: Аларский муниципальный район | C16: Нельхай | D16: 25605431
A17: 16 | B17: Аларский муниципальный район | C17: Ныгдинское | D17: 25605432
A18: 17 | B18: Аларский муниципальный район | C18: Табарсук | D18: 25605434
A19: 18 | B19: Аларский муниципальный район | C19: Тыргетуй | D19: 25605437
A20: 19 | B20: Ангарский | C20: Ангарский | D20: 25703000
A21: 20 | B21: Балаганский муниципальный район | C21: Балаганский муниципальный район | D21: 25601000
A22: 21 | B22: Балаганский муниципальный район | C22: Балаганское | D22: 25601403
A23: 22 | B23: Балаганский муниципальный район | C23: Балаганское городское поселение | D23: 25601151
A24: 23 | B24: Балаганский муниципальный район | C24: Биритское | D24: 25601405
A25: 24 | B25: Балаганский муниципальный район | C25: Заславское | D25: 25601410
A26: 25 | B26: Балаганский муниципальный район | C26: Коноваловское | D26: 25601415
A27: 26 | B27: Балаганский муниципальный район | C27: Кумарейское | D27: 25601418
A28: 27 | B28: Балаганский муниципальный район | C28: Тарнопольское | D28: 25601425
A29: 28 | B29: Балаганский муниципальный район | C29: Шарагайское | D29: 25601435
A30: 29 | B30: Баяндаевский муниципальный район | C30: Баяндаевский муниципальный район | D30: 25607000
A31: 30 | B31: Баяндаевский муниципальный район | C31: Баяндай | D31: 25607405
A32: 31 | B32: Баяндаевский муниципальный район | C32: Васильевск | D32: 25607408
A33: 32 | B33: Баяндаевский муниципальный район | C33: Гаханы | D33: 25607410
A34: 33 | B34: Баяндаевский муниципальный район | C34: Курумчинский | D34: 25607414
A35: 34 | B35: Баяндаевский муниципальный район | C35: Кырма | D35: 25607420
A36: 35 | B36: Баяндаевский муниципальный район | C36: Люры | D36: 25607424
A37: 36 | B37: Баяндаевский муниципальный район | C37: Нагалык | D37: 25607428
A38: 37 | B38: Баяндаевский муниципальный район | C38: Ользоны | D38: 25607432
A39: 38 | B39: Баяндаевский муниципальный район | C39: Покровка | D39: 25607434
A40: 39 | B40: Баяндаевский муниципальный район | C40: Половинка | D40: 25607435
A41: 40 | B41: Баяндаевский муниципальный район | C41: Тургеневка | D41: 25607441
A42: 41 | B42: Баяндаевский муниципальный район | C42: Хогот | D42: 25607448
A43: 42 | B43: Бодайбинский муниципальный район | C43: Артемовское | D43: 25602155
A44: 43 | B44: Бодайбинский муниципальный район | C44: Балахнинское | D44: 25602156
A45: 44 | B45: Бодайбинский муниципальный район | C45: Бодайбинский муниципальный район | D45: 25602000
A46: 45 | B46: Бодайбинский муниципальный район | C46: Бодайбинское | D46: 25602101
A47: 46 | B47: Бодайбинский муниципальный район | C47: Жуинское | D47: 25602402
A48: 47 | B48: Бодайбинский муниципальный район | C48: Кропоткинское | D48: 25602158
A49: 48 | B49: Бодайбинский муниципальный район | C49: Мамаканское | D49: 25602162
A50: 49 | B50: Боханский муниципальный район | C50: Александровское | D50: 25609402
A51: 50 | B51: Боханский муниципальный район | C51: Бохан | D51: 25609405
A52: 51 | B52: Боханский муниципальный район | C52: Боханский муниципальный район | D52: 25609000
A53: 52 | B53: Боханский муниципальный район | C53: Буреть | D53: 25609407
A54: 53 | B54: Боханский муниципальный район | C54: Казачье | D54: 25609416
A55: 54 | B55: Боханский муниципальный район | C55: Каменка | D55: 25609419
A56: 55 | B56: Боханский муниципальный район | C56: Новая Ида | D56: 25609424
A57: 56 | B57: Боханский муниципальный район | C57: Олонки | D57: 25609429
A58: 57 | B58: Боханский муниципальный район | C58: Середкино | D58: 25609435
A59: 58 | B59: Боханский муниципальный район | C59: Тараса | D59: 25609438
A60: 59 | B60: Боханский муниципальный район | C60: Тихоновка | D60: 25609440
A61: 60 | B61: Боханский муниципальный район | C61: Укыр | D61: 25609442
A62: 61 | B62: Боханский муниципальный район | C62: Хохорск | D62: 25609449
A63: 62 | B63: Боханский муниципальный район | C63: Шаралдай | D63: 25609450
A64: 63 | B64: Братский муниципальный район | C64: Большеокинское | D64: 25604401
A65: 64 | B65: Братский муниципальный район | C65: Братский муниципальный район | D65: 25604000
A66: 65 | B66: Братский муниципальный район | C66: Вихоревское | D66: 25604103
A67: 66 | B67: Братский муниципальный район | C67: Добчурское | D67: 25604402
A68: 67 | B68: Братский муниципальный район | C68: Зябинское | D68: 25604456
A69: 68 | B69: Братский муниципальный район | C69: Илирское | D69: 25604404
A70: 69 | B70: Братский муниципальный район | C70: Калтукское | D70: 25604407
A71: 70 | B71: Братский муниципальный район | C71: Карахунское | D71: 25604410
A72: 71 | B72: Братский муниципальный район | C72: Кежемское | D72: 25604413
A73: 72 | B73: Братский муниципальный район | C73: Ключи-Булакское | D73: 25604416
A74: 73 | B74: Братский муниципальный район | C74: Кобинское | D74: 25604457
A75: 74 | B75: Братский муниципальный район | C75: Кобляковское | D75: 25604422
A76: 75 | B76: Братский муниципальный район | C76: Куватское | D76: 25604458
A77: 76 | B77: Братский муниципальный район | C77: Кузнецовское | D77: 25604425
A78: 77 | B78: Братский муниципальный район | C78: Межселенные территории Братского муниципального района, на которых расположены земли следующих населенных пунктов: п Тынкобь, п Хвойный | D78: 25604701
A79: 78 | B79: Братский муниципальный район | C79: Наратайское | D79: 25604428
A80: 79 | B80: Братский муниципальный район | C80: Озернинское | D80: 25604431
A81: 80 | B81: Братский муниципальный район | C81: Покоснинское | D81: 25604437
A82: 81 | B82: Братский муниципальный район | C82: Прибойнинское | D82: 25604434
A83: 82 | B83: Братский муниципальный район | C83: Прибрежнинское | D83: 25604440
A84: 83 | B84: Братский муниципальный район | C84: Тангуйское | D84: 25604443
A85: 84 | B85: Братский муниципальный район | C85: Тарминское | D85: 25604445
A86: 85 | B86: Братский муниципальный район | C86: Турманское | D86: 25604447
A87: 86 | B87: Братский муниципальный район | C87: Тэмьское | D87: 25604450
A88: 87 | B88: Братский муниципальный район | C88: Харанжинское | D88: 25604452
A89: 88 | B89: Братский муниципальный район | C89: Шумиловское | D89: 25604455
A90: 89 | B90: Город Братск | C90: Город Братск | D90: 25714000
A91: 90 | B91: Город Иркутск | C91: Город Иркутск | D91: 25701000
A92: 91 | B92: Город Саянск | C92: Город Саянск | D92: 25726000
A93: 92 | B93: Город Тулун | C93: Город Тулун | D93: 25732000
A94: 93 | B94: Город Усолье-Сибирское | C94: Город Усолье-Сибирское | D94: 25736000
A95: 94 | B95: Город Усть-Илимск | C95: Город Усть-Илимск | D95: 25738000
A96: 95 | B96: Жигаловский муниципальный район | C96: Дальне-Закорское | D96: 25606404
A97: 96 | B97: Жигаловский муниципальный район | C97: Жигаловский муниципальный район | D97: 25606000
A98: 97 | B98: Жигаловский муниципальный район | C98: Жигаловское | D98: 25606151
A99: 98 | B99: Жигаловский муниципальный район | C99: Знаменское | D99: 25606407
A100: 99 | B100: Жигаловский муниципальный район | C100: Лукиновское | D100: 25606419
A101: 100 | B101: Жигаловский муниципальный район | C101: Межселенные территории Жигаловского муниципального района, на которых расположены земли следующих населенных пунктов: с Коношаново, д Головское | D101: 25606701
A102: 101 | B102: Жигаловский муниципальный район | C102: Петровское | D102: 25606422
A103: 102 | B103: Жигаловский муниципальный район | C103: Рудовское | D103: 25606425
A104: 103 | B104: Жигаловский муниципальный район | C104: Тимошинское | D104: 25606431
A105: 104 | B105: Жигаловский муниципальный район | C105: Тутурское | D105: 25606434
A106: 105 | B106: Жигаловский муниципальный район | C106: Усть-Илгинское | D106: 25606437
A107: 106 | B107: Жигаловский муниципальный район | C107: Чиканское | D107: 25606440
A108: 107 | B108: Заларинский муниципальный район | C108: Бабагайское | D108: 25608402
A109: 108 | B109: Заларинский муниципальный район | C109: Бажирское | D109: 25608404
A110: 109 | B110: Заларинский муниципальный район | C110: Веренское | D110: 25608407
A111: 110 | B111: Заларинский муниципальный район | C111: Владимирское | D111: 25608410
A112: 111 | B112: Заларинский муниципальный район | C112: Заларинский муниципальный район | D112: 25608000
A113: 112 | B113: Заларинский муниципальный район | C113: Заларинское | D113: 25608151
A114: 113 | B114: Заларинский муниципальный район | C114: Моисеевское | D114: 25608416
A115: 114 | B115: Заларинский муниципальный район | C115: Мойганское | D115: 25608419
A116: 115 | B116: Заларинский муниципальный район | C116: Новочеремховское | D116: 25608422
A117: 116 | B117: Заларинский муниципальный район | C117: Семеновское | D117: 25608425
A118: 117 | B118: Заларинский муниципальный район | C118: Троицкое | D118: 25608428
A119: 118 | B119: Заларинский муниципальный район | C119: Тыретское | D119: 25608155
A120: 119 | B120: Заларинский муниципальный район | C120: Ханжиновское | D120: 25608434
A121: 120 | B121: Заларинский муниципальный район | C121: Холмогойское | D121: 25608437
A122: 121 | B122: Заларинский муниципальный район | C122: Хор-Тагнинское | D122: 25608440
A123: 122 | B123: Заларинский муниципальный район | C123: Черемшанское | D123: 25608443
A124: 123 | B124: Зиминский муниципальный район | C124: Батаминское | D124: 25610402
A125: 124 | B125: Зиминский муниципальный район | C125: Буринское | D125: 25610403
A126: 125 | B126: Зиминский муниципальный район | C126: Зиминский муниципальный район | D126: 25610000
A127: 126 | B127: Зиминский муниципальный район | C127: Зулумайское | D127: 25610404
A128: 127 | B128: Зиминский муниципальный район | C128: Кимильтейское | D128: 25610407
A129: 128 | B129: Зиминский муниципальный район | C129: Масляногорское | D129: 25610413
A130: 129 | B130: Зиминский муниципальный район | C130: Покровское | D130: 25610419
A131: 130 | B131: Зиминский муниципальный район | C131: Услонское | D131: 25610422
A132: 131 | B132: Зиминский муниципальный район | C132: Ухтуйское | D132: 25610425
A133: 132 | B133: Зиминский муниципальный район | C133: Филипповское | D133: 25610428
A134: 133 | B134: Зиминский муниципальный район | C134: Хазанское | D134: 25610431
A135: 134 | B135: Зиминский муниципальный район | C135: Харайгунское | D135: 25610435
A136: 135 | B136: Зиминское | C136: Зиминское | D136: 25720000
A137: 136 | B137: Иркутский муниципальный район | C137: Большереченское | D137: 25612155
A138: 137 | B138: Иркутский муниципальный район | C138: Голоустненское | D138: 25612404
A139: 138 | B139: Иркутский муниципальный район | C139: Гороховское | D139: 25612407
A140: 139 | B140: Иркутский муниципальный район | C140: Дзержинское | D140: 25612438
A141: 140 | B141: Иркутский муниципальный район | C141: Иркутский муниципальный район | D141: 25612000
A142: 141 | B142: Иркутский муниципальный район | C142: Карлукское | D142: 25612408
A143: 142 | B143: Иркутский муниципальный район | C143: Листвянское | D143: 25612160
A144: 143 | B144: Иркутский муниципальный район | C144: Максимовское | D144: 25612410
A145: 144 | B145: Иркутский муниципальный район | C145: Мамонское | D145: 25612439
A146: 145 | B146: Иркутский муниципальный район | C146: Марковское | D146: 25612163
A147: 146 | B147: Иркутский муниципальный район | C147: Молодежное | D147: 25612440
A148: 147 | B148: Иркутский муниципальный район | C148: Никольское | D148: 25612413
A149: 148 | B149: Иркутский муниципальный район | C149: Оекское | D149: 25612416
A150: 149 | B150: Иркутский муниципальный район | C150: Ревякинское | D150: 25612419
A151: 150 | B151: Иркутский муниципальный район | C151: Смоленское | D151: 25612422
A152: 151 | B152: Иркутский муниципальный район | C152: Сосновоборское | D152: 25612441
A153: 152 | B153: Иркутский муниципальный район | C153: Уриковское | D153: 25612425
A154: 153 | B154: Иркутский муниципальный район | C154: Усть-Балейское | D154: 25612428
A155: 154 | B155: Иркутский муниципальный район | C155: Усть-Кудинское | D155: 25612442
A156: 155 | B156: Иркутский муниципальный район | C156: Ушаковское | D156: 25612431
A157: 156 | B157: Иркутский муниципальный район | C157: Хомутовское | D157: 25612434
A158: 157 | B158: Иркутский муниципальный район | C158: Ширяевское | D158: 25612437
A159: 158 | B159: Казачинско-Ленский муниципальный район | C159: Казаченское | D159: 25614404
A160: 159 | B160: Казачинско-Ленский муниципальный район | C160: Казачинско-Ленский муниципальный район | D160: 25614000
A161: 160 | B161: Казачинско-Ленский муниципальный район | C161: Карамское | D161: 25614407
A162: 161 | B162: Казачинско-Ленский муниципальный район | C162: Ключевское | D162: 25614417
A163: 162 | B163: Казачинско-Ленский муниципальный район | C163: Кунерминское | D163: 25614153
A164: 163 | B164: Казачинско-Ленский муниципальный район | C164: Магистральнинское | D164: 25614154
A165: 164 | B165: Казачинско-Ленский муниципальный район | C165: Мартыновское | D165: 25614413
A166: 165 | B166: Казачинско-Ленский муниципальный район | C166: Межселенные территории Казачинско-Ленского муниципального района, на которых расположены земли следующих населенных пунктов: д Вершина Ханды | D166: 25614701
A167: 166 | B167: Казачинско-Ленский муниципальный район | C167: Небельское | D167: 25614418
A168: 167 | B168: Казачинско-Ленский муниципальный район | C168: Новоселовское | D168: 25614416
A169: 168 | B169: Казачинско-Ленский муниципальный район | C169: Ульканское | D169: 25614158
A170: 169 | B170: Катангский муниципальный район | C170: Ербогаченское | D170: 25616404
A171: 170 | B171: Катангский муниципальный район | C171: Катангский муниципальный район | D171: 25616000
A172: 171 | B172: Катангский муниципальный район | C172: Непское | D172: 25616419
A173: 172 | B173: Катангский муниципальный район | C173: Подволошинское | D173: 25616425
A174: 173 | B174: Катангский муниципальный район | C174: Преображенское | D174: 25616428
A175: 174 | B175: Качугский муниципальный район | C175: Ангинское | D175: 25618402
A176: 175 | B176: Качугский муниципальный район | C176: Белоусовское | D176: 25618404
A177: 176 | B177: Качугский муниципальный район | C177: Бирюльское | D177: 25618407
A178: 177 | B178: Качугский муниципальный район | C178: Большетарельское | D178: 25618410
A179: 178 | B179: Качугский муниципальный район | C179: Бутаковское | D179: 25618413
A180: 179 | B180: Качугский муниципальный район | C180: Верхоленское | D180: 25618419
A181: 180 | B181: Качугский муниципальный район | C181: Вершино-Тутурское | D181: 25618416
A182: 181 | B182: Качугский муниципальный район | C182: Залогское | D182: 25618422
A183: 182 | B183: Качугский муниципальный район | C183: Зареченское | D183: 25618425
A184: 183 | B184: Качугский муниципальный район | C184: Карлукское | D184: 25618428
A185: 184 | B185: Качугский муниципальный район | C185: Качугский муниципальный район | D185: 25618000
A186: 185 | B186: Качугский муниципальный район | C186: Качугское городское поселение | D186: 25618151
A187: 186 | B187: Качугский муниципальный район | C187: Качугское сельское поселение | D187: 25618431
A188: 187 | B188: Качугский муниципальный район | C188: Манзурское | D188: 25618437
A189: 188 | B189: Качугский муниципальный район | C189: Харбатовское | D189: 25618443
A190: 189 | B190: Киренский муниципальный район | C190: Алексеевское | D190: 25620155
A191: 190 | B191: Киренский муниципальный район | C191: Алымовское | D191: 25620402
A192: 191 | B192: Киренский муниципальный район | C192: Киренский муниципальный район | D192: 25620000
A193: 192 | B193: Киренский муниципальный район | C193: Киренское | D193: 25620101
A194: 193 | B194: Киренский муниципальный район | C194: Коршуновское | D194: 25620419
A195: 194 | B195: Киренский муниципальный район | C195: Криволукское | D195: 25620425
A196: 195 | B196: Киренский муниципальный район | C196: Макаровское | D196: 25620431
A197: 196 | B197: Киренский муниципальный район | C197: Межселенные территории Киренского муниципального района, на территории которых расположены земли следующих населенных пунктов: с Улькан, с Красноярово, п Визирный | D197: 25620701
A198: 197 | B198: Киренский муниципальный район | C198: Небельское | D198: 25620435
A199: 198 | B199: Киренский муниципальный район | C199: Петропавловское | D199: 25620437
A200: 199 | B200: Киренский муниципальный район | C200: Юбилейнинское | D200: 25620453
... 268 more rows

Sheet REESTR_MO_FILTER (hidden)

Sheet modfrmReestrMR (hidden)

Sheet modServiceModule (hidden)

Sheet modfrmCheckUpdates (hidden)

Sheet REESTR_DS (hidden)
B3: Город Саянск, Город Саянск (25726000);

Sheet REESTR_CHS (hidden)

Sheet REESTR_LINK (hidden)
A1: ID | B1: LINK_NAME | C1: REGION
A2: 4189678 | B2: https://portal.eias.ru/Portal/DownloadPage.aspx?type=12&guid=????????-????-????-????-???????????? | C2: ALL
A3: 4190415 | B3: https://eias.fstrf.ru/disclo/get_file?p_guid=????????-????-????-????-???????????? | C3: ALL
